{"text_format":"3","workbook":"xlsx","n_sheets":2,"sheets":["Horário das Aulas","Lista de Aulas"],"not_rendered":{"defined_names":17},"read":"whole","date_system":"1900"}

{"sheet":"Horário das Aulas","index":0,"n_rows":56,"n_cols":9,"rows_kept":56,"merged":[[0,1,1,5],[0,8,1,8]]}
[null,"HORÁRIO DAS AULAS",{"$nulls":4},"HORÁRIO \nDE INÍCIO","HORA DE \nINTERVALO","Lista de Aulas"]
[{"$nulls":6},"08:00:00","15 MIN"]
[null,"HORA","DOMINGO","SEGUNDA-FEIRA","TERÇA-FEIRA","QUARTA-FEIRA","QUINTA-FEIRA","SEXTA-FEIRA","SÁBADO"]
[null,{"$f":"InícioCalendário","v":"08:00:00"},{"$f":"IFERROR(INDEX(ListaAula[],MATCH(SUMPRODUCT((ListaAula[DIA]=HorárioDasAulas[[#Headers],[DOMINGO]])*(ROUNDDOWN($B4,10)>=ROUNDDOWN(ListaAula[HORA DE INÍCIO],10))*($B4<=ListaAula[HORA DE TÉRMINO]),ListaAula[EXCLUSIVO]),ListaAula[EXCLUSIVO],0),2),0)","v":0},{"$f":"IFERROR(INDEX(ListaAula[],MATCH(SUMPRODUCT((ListaAula[DIA]=HorárioDasAulas[[#Headers],[SEGUNDA-FEIRA]])*(ROUNDDOWN($B4,10)>=ROUNDDOWN(ListaAula[HORA DE INÍCIO],10))*($B4<=ListaAula[HORA DE TÉRMINO]),ListaAula[EXCLUSIVO]),ListaAula[EXCLUSIVO],0),2),0)","v":0},{"$f":"IFERROR(INDEX(ListaAula[],MATCH(SUMPRODUCT((ListaAula[DIA]=HorárioDasAulas[[#Headers],[TERÇA-FEIRA]])*(ROUNDDOWN($B4,10)>=ROUNDDOWN(ListaAula[HORA DE INÍCIO],10))*($B4<=ListaAula[HORA DE TÉRMINO]),ListaAula[EXCLUSIVO]),ListaAula[EXCLUSIVO],0),2),0)","v":0},{"$f":"IFERROR(INDEX(ListaAula[],MATCH(SUMPRODUCT((ListaAula[DIA]=HorárioDasAulas[[#Headers],[QUARTA-FEIRA]])*(ROUNDDOWN($B4,10)>=ROUNDDOWN(ListaAula[HORA DE INÍCIO],10))*($B4<=ListaAula[HORA DE TÉRMINO]),ListaAula[EXCLUSIVO]),ListaAula[EXCLUSIVO],0),2),0)","v":0},{"$f":"IFERROR(INDEX(ListaAula[],MATCH(SUMPRODUCT((ListaAula[DIA]=HorárioDasAulas[[#Headers],[QUINTA-FEIRA]])*(ROUNDDOWN($B4,10)>=ROUNDDOWN(ListaAula[HORA DE INÍCIO],10))*($B4<=ListaAula[HORA DE TÉRMINO]),ListaAula[EXCLUSIVO]),ListaAula[EXCLUSIVO],0),2),0)","v":0},{"$f":"IFERROR(INDEX(ListaAula[],MATCH(SUMPRODUCT((ListaAula[DIA]=HorárioDasAulas[[#Headers],[SEXTA-FEIRA]])*(ROUNDDOWN($B4,10)>=ROUNDDOWN(ListaAula[HORA DE INÍCIO],10))*($B4<=ListaAula[HORA DE TÉRMINO]),ListaAula[EXCLUSIVO]),ListaAula[EXCLUSIVO],0),2),0)","v":0},{"$f":"IFERROR(INDEX(ListaAula[],MATCH(SUMPRODUCT((ListaAula[DIA]=HorárioDasAulas[[#Headers],[SÁBADO]])*(ROUNDDOWN($B4,10)>=ROUNDDOWN(ListaAula[HORA DE INÍCIO],10))*($B4<=ListaAula[HORA DE TÉRMINO]),ListaAula[EXCLUSIVO]),ListaAula[EXCLUSIVO],0),2),0)","v":0}]
[null,{"$f":"B4+Incremento","v":"08:15:00"},{"$f":"IFERROR(INDEX(ListaAula[],MATCH(SUMPRODUCT((ListaAula[DIA]=HorárioDasAulas[[#Headers],[DOMINGO]])*(ROUNDDOWN($B5,10)>=ROUNDDOWN(ListaAula[HORA DE INÍCIO],10))*($B5<=ListaAula[HORA DE TÉRMINO]),ListaAula[EXCLUSIVO]),ListaAula[EXCLUSIVO],0),2),0)","v":0},{"$f":"IFERROR(INDEX(ListaAula[],MATCH(SUMPRODUCT((ListaAula[DIA]=HorárioDasAulas[[#Headers],[SEGUNDA-FEIRA]])*(ROUNDDOWN($B5,10)>=ROUNDDOWN(ListaAula[HORA DE INÍCIO],10))*($B5<=ListaAula[HORA DE TÉRMINO]),ListaAula[EXCLUSIVO]),ListaAula[EXCLUSIVO],0),2),0)","v":"MTH-113"},{"$f":"IFERROR(INDEX(ListaAula[],MATCH(SUMPRODUCT((ListaAula[DIA]=HorárioDasAulas[[#Headers],[TERÇA-FEIRA]])*(ROUNDDOWN($B5,10)>=ROUNDDOWN(ListaAula[HORA DE INÍCIO],10))*($B5<=ListaAula[HORA DE TÉRMINO]),ListaAula[EXCLUSIVO]),ListaAula[EXCLUSIVO],0),2),0)","v":0},{"$f":"IFERROR(INDEX(ListaAula[],MATCH(SUMPRODUCT((ListaAula[DIA]=HorárioDasAulas[[#Headers],[QUARTA-FEIRA]])*(ROUNDDOWN($B5,10)>=ROUNDDOWN(ListaAula[HORA DE INÍCIO],10))*($B5<=ListaAula[HORA DE TÉRMINO]),ListaAula[EXCLUSIVO]),ListaAula[EXCLUSIVO],0),2),0)","v":"MTH-113"},{"$f":"IFERROR(INDEX(ListaAula[],MATCH(SUMPRODUCT((ListaAula[DIA]=HorárioDasAulas[[#Headers],[QUINTA-FEIRA]])*(ROUNDDOWN($B5,10)>=ROUNDDOWN(ListaAula[HORA DE INÍCIO],10))*($B5<=ListaAula[HORA DE TÉRMINO]),ListaAula[EXCLUSIVO]),ListaAula[EXCLUSIVO],0),2),0)","v":0},{"$f":"IFERROR(INDEX(ListaAula[],MATCH(SUMPRODUCT((ListaAula[DIA]=HorárioDasAulas[[#Headers],[SEXTA-FEIRA]])*(ROUNDDOWN($B5,10)>=ROUNDDOWN(ListaAula[HORA DE INÍCIO],10))*($B5<=ListaAula[HORA DE TÉRMINO]),ListaAula[EXCLUSIVO]),ListaAula[EXCLUSIVO],0),2),0)","v":"MTH-113"},{"$f":"IFERROR(INDEX(ListaAula[],MATCH(SUMPRODUCT((ListaAula[DIA]=HorárioDasAulas[[#Headers],[SÁBADO]])*(ROUNDDOWN($B5,10)>=ROUNDDOWN(ListaAula[HORA DE INÍCIO],10))*($B5<=ListaAula[HORA DE TÉRMINO]),ListaAula[EXCLUSIVO]),ListaAula[EXCLUSIVO],0),2),0)","v":0}]
[null,"08:30:00",{"$f":"IFERROR(INDEX(ListaAula[],MATCH(SUMPRODUCT((ListaAula[DIA]=HorárioDasAulas[[#Headers],[DOMINGO]])*(ROUNDDOWN($B6,10)>=ROUNDDOWN(ListaAula[HORA DE INÍCIO],10))*($B6<=ListaAula[HORA DE TÉRMINO]),ListaAula[EXCLUSIVO]),ListaAula[EXCLUSIVO],0),2),0)","v":0},{"$f":"IFERROR(INDEX(ListaAula[],MATCH(SUMPRODUCT((ListaAula[DIA]=HorárioDasAulas[[#Headers],[SEGUNDA-FEIRA]])*(ROUNDDOWN($B6,10)>=ROUNDDOWN(ListaAula[HORA DE INÍCIO],10))*($B6<=ListaAula[HORA DE TÉRMINO]),ListaAula[EXCLUSIVO]),ListaAula[EXCLUSIVO],0),2),0)","v":"MTH-113"},{"$f":"IFERROR(INDEX(ListaAula[],MATCH(SUMPRODUCT((ListaAula[DIA]=HorárioDasAulas[[#Headers],[TERÇA-FEIRA]])*(ROUNDDOWN($B6,10)>=ROUNDDOWN(ListaAula[HORA DE INÍCIO],10))*($B6<=ListaAula[HORA DE TÉRMINO]),ListaAula[EXCLUSIVO]),ListaAula[EXCLUSIVO],0),2),0)","v":0},{"$f":"IFERROR(INDEX(ListaAula[],MATCH(SUMPRODUCT((ListaAula[DIA]=HorárioDasAulas[[#Headers],[QUARTA-FEIRA]])*(ROUNDDOWN($B6,10)>=ROUNDDOWN(ListaAula[HORA DE INÍCIO],10))*($B6<=ListaAula[HORA DE TÉRMINO]),ListaAula[EXCLUSIVO]),ListaAula[EXCLUSIVO],0),2),0)","v":"MTH-113"},{"$f":"IFERROR(INDEX(ListaAula[],MATCH(SUMPRODUCT((ListaAula[DIA]=HorárioDasAulas[[#Headers],[QUINTA-FEIRA]])*(ROUNDDOWN($B6,10)>=ROUNDDOWN(ListaAula[HORA DE INÍCIO],10))*($B6<=ListaAula[HORA DE TÉRMINO]),ListaAula[EXCLUSIVO]),ListaAula[EXCLUSIVO],0),2),0)","v":0},{"$f":"IFERROR(INDEX(ListaAula[],MATCH(SUMPRODUCT((ListaAula[DIA]=HorárioDasAulas[[#Headers],[SEXTA-FEIRA]])*(ROUNDDOWN($B6,10)>=ROUNDDOWN(ListaAula[HORA DE INÍCIO],10))*($B6<=ListaAula[HORA DE TÉRMINO]),ListaAula[EXCLUSIVO]),ListaAula[EXCLUSIVO],0),2),0)","v":"MTH-113"},{"$f":"IFERROR(INDEX(ListaAula[],MATCH(SUMPRODUCT((ListaAula[DIA]=HorárioDasAulas[[#Headers],[SÁBADO]])*(ROUNDDOWN($B6,10)>=ROUNDDOWN(ListaAula[HORA DE INÍCIO],10))*($B6<=ListaAula[HORA DE TÉRMINO]),ListaAula[EXCLUSIVO]),ListaAula[EXCLUSIVO],0),2),0)","v":0}]
[null,"08:45:00",{"$f":"IFERROR(INDEX(ListaAula[],MATCH(SUMPRODUCT((ListaAula[DIA]=HorárioDasAulas[[#Headers],[DOMINGO]])*(ROUNDDOWN($B7,10)>=ROUNDDOWN(ListaAula[HORA DE INÍCIO],10))*($B7<=ListaAula[HORA DE TÉRMINO]),ListaAula[EXCLUSIVO]),ListaAula[EXCLUSIVO],0),2),0)","v":0},{"$f":"IFERROR(INDEX(ListaAula[],MATCH(SUMPRODUCT((ListaAula[DIA]=HorárioDasAulas[[#Headers],[SEGUNDA-FEIRA]])*(ROUNDDOWN($B7,10)>=ROUNDDOWN(ListaAula[HORA DE INÍCIO],10))*($B7<=ListaAula[HORA DE TÉRMINO]),ListaAula[EXCLUSIVO]),ListaAula[EXCLUSIVO],0),2),0)","v":"MTH-113"},{"$f":"IFERROR(INDEX(ListaAula[],MATCH(SUMPRODUCT((ListaAula[DIA]=HorárioDasAulas[[#Headers],[TERÇA-FEIRA]])*(ROUNDDOWN($B7,10)>=ROUNDDOWN(ListaAula[HORA DE INÍCIO],10))*($B7<=ListaAula[HORA DE TÉRMINO]),ListaAula[EXCLUSIVO]),ListaAula[EXCLUSIVO],0),2),0)","v":0},{"$f":"IFERROR(INDEX(ListaAula[],MATCH(SUMPRODUCT((ListaAula[DIA]=HorárioDasAulas[[#Headers],[QUARTA-FEIRA]])*(ROUNDDOWN($B7,10)>=ROUNDDOWN(ListaAula[HORA DE INÍCIO],10))*($B7<=ListaAula[HORA DE TÉRMINO]),ListaAula[EXCLUSIVO]),ListaAula[EXCLUSIVO],0),2),0)","v":"MTH-113"},{"$f":"IFERROR(INDEX(ListaAula[],MATCH(SUMPRODUCT((ListaAula[DIA]=HorárioDasAulas[[#Headers],[QUINTA-FEIRA]])*(ROUNDDOWN($B7,10)>=ROUNDDOWN(ListaAula[HORA DE INÍCIO],10))*($B7<=ListaAula[HORA DE TÉRMINO]),ListaAula[EXCLUSIVO]),ListaAula[EXCLUSIVO],0),2),0)","v":0},{"$f":"IFERROR(INDEX(ListaAula[],MATCH(SUMPRODUCT((ListaAula[DIA]=HorárioDasAulas[[#Headers],[SEXTA-FEIRA]])*(ROUNDDOWN($B7,10)>=ROUNDDOWN(ListaAula[HORA DE INÍCIO],10))*($B7<=ListaAula[HORA DE TÉRMINO]),ListaAula[EXCLUSIVO]),ListaAula[EXCLUSIVO],0),2),0)","v":"MTH-113"},{"$f":"IFERROR(INDEX(ListaAula[],MATCH(SUMPRODUCT((ListaAula[DIA]=HorárioDasAulas[[#Headers],[SÁBADO]])*(ROUNDDOWN($B7,10)>=ROUNDDOWN(ListaAula[HORA DE INÍCIO],10))*($B7<=ListaAula[HORA DE TÉRMINO]),ListaAula[EXCLUSIVO]),ListaAula[EXCLUSIVO],0),2),0)","v":0}]
[null,"09:00:00",{"$f":"IFERROR(INDEX(ListaAula[],MATCH(SUMPRODUCT((ListaAula[DIA]=HorárioDasAulas[[#Headers],[DOMINGO]])*(ROUNDDOWN($B8,10)>=ROUNDDOWN(ListaAula[HORA DE INÍCIO],10))*($B8<=ListaAula[HORA DE TÉRMINO]),ListaAula[EXCLUSIVO]),ListaAula[EXCLUSIVO],0),2),0)","v":0},{"$f":"IFERROR(INDEX(ListaAula[],MATCH(SUMPRODUCT((ListaAula[DIA]=HorárioDasAulas[[#Headers],[SEGUNDA-FEIRA]])*(ROUNDDOWN($B8,10)>=ROUNDDOWN(ListaAula[HORA DE INÍCIO],10))*($B8<=ListaAula[HORA DE TÉRMINO]),ListaAula[EXCLUSIVO]),ListaAula[EXCLUSIVO],0),2),0)","v":"MTH-113"},{"$f":"IFERROR(INDEX(ListaAula[],MATCH(SUMPRODUCT((ListaAula[DIA]=HorárioDasAulas[[#Headers],[TERÇA-FEIRA]])*(ROUNDDOWN($B8,10)>=ROUNDDOWN(ListaAula[HORA DE INÍCIO],10))*($B8<=ListaAula[HORA DE TÉRMINO]),ListaAula[EXCLUSIVO]),ListaAula[EXCLUSIVO],0),2),0)","v":0},{"$f":"IFERROR(INDEX(ListaAula[],MATCH(SUMPRODUCT((ListaAula[DIA]=HorárioDasAulas[[#Headers],[QUARTA-FEIRA]])*(ROUNDDOWN($B8,10)>=ROUNDDOWN(ListaAula[HORA DE INÍCIO],10))*($B8<=ListaAula[HORA DE TÉRMINO]),ListaAula[EXCLUSIVO]),ListaAula[EXCLUSIVO],0),2),0)","v":"MTH-113"},{"$f":"IFERROR(INDEX(ListaAula[],MATCH(SUMPRODUCT((ListaAula[DIA]=HorárioDasAulas[[#Headers],[QUINTA-FEIRA]])*(ROUNDDOWN($B8,10)>=ROUNDDOWN(ListaAula[HORA DE INÍCIO],10))*($B8<=ListaAula[HORA DE TÉRMINO]),ListaAula[EXCLUSIVO]),ListaAula[EXCLUSIVO],0),2),0)","v":0},{"$f":"IFERROR(INDEX(ListaAula[],MATCH(SUMPRODUCT((ListaAula[DIA]=HorárioDasAulas[[#Headers],[SEXTA-FEIRA]])*(ROUNDDOWN($B8,10)>=ROUNDDOWN(ListaAula[HORA DE INÍCIO],10))*($B8<=ListaAula[HORA DE TÉRMINO]),ListaAula[EXCLUSIVO]),ListaAula[EXCLUSIVO],0),2),0)","v":"MTH-113"},{"$f":"IFERROR(INDEX(ListaAula[],MATCH(SUMPRODUCT((ListaAula[DIA]=HorárioDasAulas[[#Headers],[SÁBADO]])*(ROUNDDOWN($B8,10)>=ROUNDDOWN(ListaAula[HORA DE INÍCIO],10))*($B8<=ListaAula[HORA DE TÉRMINO]),ListaAula[EXCLUSIVO]),ListaAula[EXCLUSIVO],0),2),0)","v":0}]
[null,"09:15:00",{"$f":"IFERROR(INDEX(ListaAula[],MATCH(SUMPRODUCT((ListaAula[DIA]=HorárioDasAulas[[#Headers],[DOMINGO]])*(ROUNDDOWN($B9,10)>=ROUNDDOWN(ListaAula[HORA DE INÍCIO],10))*($B9<=ListaAula[HORA DE TÉRMINO]),ListaAula[EXCLUSIVO]),ListaAula[EXCLUSIVO],0),2),0)","v":0},{"$f":"IFERROR(INDEX(ListaAula[],MATCH(SUMPRODUCT((ListaAula[DIA]=HorárioDasAulas[[#Headers],[SEGUNDA-FEIRA]])*(ROUNDDOWN($B9,10)>=ROUNDDOWN(ListaAula[HORA DE INÍCIO],10))*($B9<=ListaAula[HORA DE TÉRMINO]),ListaAula[EXCLUSIVO]),ListaAula[EXCLUSIVO],0),2),0)","v":"MTH-113"},{"$f":"IFERROR(INDEX(ListaAula[],MATCH(SUMPRODUCT((ListaAula[DIA]=HorárioDasAulas[[#Headers],[TERÇA-FEIRA]])*(ROUNDDOWN($B9,10)>=ROUNDDOWN(ListaAula[HORA DE INÍCIO],10))*($B9<=ListaAula[HORA DE TÉRMINO]),ListaAula[EXCLUSIVO]),ListaAula[EXCLUSIVO],0),2),0)","v":0},{"$f":"IFERROR(INDEX(ListaAula[],MATCH(SUMPRODUCT((ListaAula[DIA]=HorárioDasAulas[[#Headers],[QUARTA-FEIRA]])*(ROUNDDOWN($B9,10)>=ROUNDDOWN(ListaAula[HORA DE INÍCIO],10))*($B9<=ListaAula[HORA DE TÉRMINO]),ListaAula[EXCLUSIVO]),ListaAula[EXCLUSIVO],0),2),0)","v":"MTH-113"},{"$f":"IFERROR(INDEX(ListaAula[],MATCH(SUMPRODUCT((ListaAula[DIA]=HorárioDasAulas[[#Headers],[QUINTA-FEIRA]])*(ROUNDDOWN($B9,10)>=ROUNDDOWN(ListaAula[HORA DE INÍCIO],10))*($B9<=ListaAula[HORA DE TÉRMINO]),ListaAula[EXCLUSIVO]),ListaAula[EXCLUSIVO],0),2),0)","v":0},{"$f":"IFERROR(INDEX(ListaAula[],MATCH(SUMPRODUCT((ListaAula[DIA]=HorárioDasAulas[[#Headers],[SEXTA-FEIRA]])*(ROUNDDOWN($B9,10)>=ROUNDDOWN(ListaAula[HORA DE INÍCIO],10))*($B9<=ListaAula[HORA DE TÉRMINO]),ListaAula[EXCLUSIVO]),ListaAula[EXCLUSIVO],0),2),0)","v":"MTH-113"},{"$f":"IFERROR(INDEX(ListaAula[],MATCH(SUMPRODUCT((ListaAula[DIA]=HorárioDasAulas[[#Headers],[SÁBADO]])*(ROUNDDOWN($B9,10)>=ROUNDDOWN(ListaAula[HORA DE INÍCIO],10))*($B9<=ListaAula[HORA DE TÉRMINO]),ListaAula[EXCLUSIVO]),ListaAula[EXCLUSIVO],0),2),0)","v":0}]
[null,"09:30:00",{"$f":"IFERROR(INDEX(ListaAula[],MATCH(SUMPRODUCT((ListaAula[DIA]=HorárioDasAulas[[#Headers],[DOMINGO]])*(ROUNDDOWN($B10,10)>=ROUNDDOWN(ListaAula[HORA DE INÍCIO],10))*($B10<=ListaAula[HORA DE TÉRMINO]),ListaAula[EXCLUSIVO]),ListaAula[EXCLUSIVO],0),2),0)","v":0},{"$f":"IFERROR(INDEX(ListaAula[],MATCH(SUMPRODUCT((ListaAula[DIA]=HorárioDasAulas[[#Headers],[SEGUNDA-FEIRA]])*(ROUNDDOWN($B10,10)>=ROUNDDOWN(ListaAula[HORA DE INÍCIO],10))*($B10<=ListaAula[HORA DE TÉRMINO]),ListaAula[EXCLUSIVO]),ListaAula[EXCLUSIVO],0),2),0)","v":0},{"$f":"IFERROR(INDEX(ListaAula[],MATCH(SUMPRODUCT((ListaAula[DIA]=HorárioDasAulas[[#Headers],[TERÇA-FEIRA]])*(ROUNDDOWN($B10,10)>=ROUNDDOWN(ListaAula[HORA DE INÍCIO],10))*($B10<=ListaAula[HORA DE TÉRMINO]),ListaAula[EXCLUSIVO]),ListaAula[EXCLUSIVO],0),2),0)","v":0},{"$f":"IFERROR(INDEX(ListaAula[],MATCH(SUMPRODUCT((ListaAula[DIA]=HorárioDasAulas[[#Headers],[QUARTA-FEIRA]])*(ROUNDDOWN($B10,10)>=ROUNDDOWN(ListaAula[HORA DE INÍCIO],10))*($B10<=ListaAula[HORA DE TÉRMINO]),ListaAula[EXCLUSIVO]),ListaAula[EXCLUSIVO],0),2),0)","v":0},{"$f":"IFERROR(INDEX(ListaAula[],MATCH(SUMPRODUCT((ListaAula[DIA]=HorárioDasAulas[[#Headers],[QUINTA-FEIRA]])*(ROUNDDOWN($B10,10)>=ROUNDDOWN(ListaAula[HORA DE INÍCIO],10))*($B10<=ListaAula[HORA DE TÉRMINO]),ListaAula[EXCLUSIVO]),ListaAula[EXCLUSIVO],0),2),0)","v":0},{"$f":"IFERROR(INDEX(ListaAula[],MATCH(SUMPRODUCT((ListaAula[DIA]=HorárioDasAulas[[#Headers],[SEXTA-FEIRA]])*(ROUNDDOWN($B10,10)>=ROUNDDOWN(ListaAula[HORA DE INÍCIO],10))*($B10<=ListaAula[HORA DE TÉRMINO]),ListaAula[EXCLUSIVO]),ListaAula[EXCLUSIVO],0),2),0)","v":0},{"$f":"IFERROR(INDEX(ListaAula[],MATCH(SUMPRODUCT((ListaAula[DIA]=HorárioDasAulas[[#Headers],[SÁBADO]])*(ROUNDDOWN($B10,10)>=ROUNDDOWN(ListaAula[HORA DE INÍCIO],10))*($B10<=ListaAula[HORA DE TÉRMINO]),ListaAula[EXCLUSIVO]),ListaAula[EXCLUSIVO],0),2),0)","v":0}]
[null,"09:45:00",{"$f":"IFERROR(INDEX(ListaAula[],MATCH(SUMPRODUCT((ListaAula[DIA]=HorárioDasAulas[[#Headers],[DOMINGO]])*(ROUNDDOWN($B11,10)>=ROUNDDOWN(ListaAula[HORA DE INÍCIO],10))*($B11<=ListaAula[HORA DE TÉRMINO]),ListaAula[EXCLUSIVO]),ListaAula[EXCLUSIVO],0),2),0)","v":0},{"$f":"IFERROR(INDEX(ListaAula[],MATCH(SUMPRODUCT((ListaAula[DIA]=HorárioDasAulas[[#Headers],[SEGUNDA-FEIRA]])*(ROUNDDOWN($B11,10)>=ROUNDDOWN(ListaAula[HORA DE INÍCIO],10))*($B11<=ListaAula[HORA DE TÉRMINO]),ListaAula[EXCLUSIVO]),ListaAula[EXCLUSIVO],0),2),0)","v":0},{"$f":"IFERROR(INDEX(ListaAula[],MATCH(SUMPRODUCT((ListaAula[DIA]=HorárioDasAulas[[#Headers],[TERÇA-FEIRA]])*(ROUNDDOWN($B11,10)>=ROUNDDOWN(ListaAula[HORA DE INÍCIO],10))*($B11<=ListaAula[HORA DE TÉRMINO]),ListaAula[EXCLUSIVO]),ListaAula[EXCLUSIVO],0),2),0)","v":0},{"$f":"IFERROR(INDEX(ListaAula[],MATCH(SUMPRODUCT((ListaAula[DIA]=HorárioDasAulas[[#Headers],[QUARTA-FEIRA]])*(ROUNDDOWN($B11,10)>=ROUNDDOWN(ListaAula[HORA DE INÍCIO],10))*($B11<=ListaAula[HORA DE TÉRMINO]),ListaAula[EXCLUSIVO]),ListaAula[EXCLUSIVO],0),2),0)","v":0},{"$f":"IFERROR(INDEX(ListaAula[],MATCH(SUMPRODUCT((ListaAula[DIA]=HorárioDasAulas[[#Headers],[QUINTA-FEIRA]])*(ROUNDDOWN($B11,10)>=ROUNDDOWN(ListaAula[HORA DE INÍCIO],10))*($B11<=ListaAula[HORA DE TÉRMINO]),ListaAula[EXCLUSIVO]),ListaAula[EXCLUSIVO],0),2),0)","v":0},{"$f":"IFERROR(INDEX(ListaAula[],MATCH(SUMPRODUCT((ListaAula[DIA]=HorárioDasAulas[[#Headers],[SEXTA-FEIRA]])*(ROUNDDOWN($B11,10)>=ROUNDDOWN(ListaAula[HORA DE INÍCIO],10))*($B11<=ListaAula[HORA DE TÉRMINO]),ListaAula[EXCLUSIVO]),ListaAula[EXCLUSIVO],0),2),0)","v":0},{"$f":"IFERROR(INDEX(ListaAula[],MATCH(SUMPRODUCT((ListaAula[DIA]=HorárioDasAulas[[#Headers],[SÁBADO]])*(ROUNDDOWN($B11,10)>=ROUNDDOWN(ListaAula[HORA DE INÍCIO],10))*($B11<=ListaAula[HORA DE TÉRMINO]),ListaAula[EXCLUSIVO]),ListaAula[EXCLUSIVO],0),2),0)","v":0}]
[null,"10:00:00",{"$f":"IFERROR(INDEX(ListaAula[],MATCH(SUMPRODUCT((ListaAula[DIA]=HorárioDasAulas[[#Headers],[DOMINGO]])*(ROUNDDOWN($B12,10)>=ROUNDDOWN(ListaAula[HORA DE INÍCIO],10))*($B12<=ListaAula[HORA DE TÉRMINO]),ListaAula[EXCLUSIVO]),ListaAula[EXCLUSIVO],0),2),0)","v":0},{"$f":"IFERROR(INDEX(ListaAula[],MATCH(SUMPRODUCT((ListaAula[DIA]=HorárioDasAulas[[#Headers],[SEGUNDA-FEIRA]])*(ROUNDDOWN($B12,10)>=ROUNDDOWN(ListaAula[HORA DE INÍCIO],10))*($B12<=ListaAula[HORA DE TÉRMINO]),ListaAula[EXCLUSIVO]),ListaAula[EXCLUSIVO],0),2),0)","v":0},{"$f":"IFERROR(INDEX(ListaAula[],MATCH(SUMPRODUCT((ListaAula[DIA]=HorárioDasAulas[[#Headers],[TERÇA-FEIRA]])*(ROUNDDOWN($B12,10)>=ROUNDDOWN(ListaAula[HORA DE INÍCIO],10))*($B12<=ListaAula[HORA DE TÉRMINO]),ListaAula[EXCLUSIVO]),ListaAula[EXCLUSIVO],0),2),0)","v":0},{"$f":"IFERROR(INDEX(ListaAula[],MATCH(SUMPRODUCT((ListaAula[DIA]=HorárioDasAulas[[#Headers],[QUARTA-FEIRA]])*(ROUNDDOWN($B12,10)>=ROUNDDOWN(ListaAula[HORA DE INÍCIO],10))*($B12<=ListaAula[HORA DE TÉRMINO]),ListaAula[EXCLUSIVO]),ListaAula[EXCLUSIVO],0),2),0)","v":0},{"$f":"IFERROR(INDEX(ListaAula[],MATCH(SUMPRODUCT((ListaAula[DIA]=HorárioDasAulas[[#Headers],[QUINTA-FEIRA]])*(ROUNDDOWN($B12,10)>=ROUNDDOWN(ListaAula[HORA DE INÍCIO],10))*($B12<=ListaAula[HORA DE TÉRMINO]),ListaAula[EXCLUSIVO]),ListaAula[EXCLUSIVO],0),2),0)","v":0},{"$f":"IFERROR(INDEX(ListaAula[],MATCH(SUMPRODUCT((ListaAula[DIA]=HorárioDasAulas[[#Headers],[SEXTA-FEIRA]])*(ROUNDDOWN($B12,10)>=ROUNDDOWN(ListaAula[HORA DE INÍCIO],10))*($B12<=ListaAula[HORA DE TÉRMINO]),ListaAula[EXCLUSIVO]),ListaAula[EXCLUSIVO],0),2),0)","v":0},{"$f":"IFERROR(INDEX(ListaAula[],MATCH(SUMPRODUCT((ListaAula[DIA]=HorárioDasAulas[[#Headers],[SÁBADO]])*(ROUNDDOWN($B12,10)>=ROUNDDOWN(ListaAula[HORA DE INÍCIO],10))*($B12<=ListaAula[HORA DE TÉRMINO]),ListaAula[EXCLUSIVO]),ListaAula[EXCLUSIVO],0),2),0)","v":0}]
[null,"10:15:00",{"$f":"IFERROR(INDEX(ListaAula[],MATCH(SUMPRODUCT((ListaAula[DIA]=HorárioDasAulas[[#Headers],[DOMINGO]])*(ROUNDDOWN($B13,10)>=ROUNDDOWN(ListaAula[HORA DE INÍCIO],10))*($B13<=ListaAula[HORA DE TÉRMINO]),ListaAula[EXCLUSIVO]),ListaAula[EXCLUSIVO],0),2),0)","v":0},{"$f":"IFERROR(INDEX(ListaAula[],MATCH(SUMPRODUCT((ListaAula[DIA]=HorárioDasAulas[[#Headers],[SEGUNDA-FEIRA]])*(ROUNDDOWN($B13,10)>=ROUNDDOWN(ListaAula[HORA DE INÍCIO],10))*($B13<=ListaAula[HORA DE TÉRMINO]),ListaAula[EXCLUSIVO]),ListaAula[EXCLUSIVO],0),2),0)","v":0},{"$f":"IFERROR(INDEX(ListaAula[],MATCH(SUMPRODUCT((ListaAula[DIA]=HorárioDasAulas[[#Headers],[TERÇA-FEIRA]])*(ROUNDDOWN($B13,10)>=ROUNDDOWN(ListaAula[HORA DE INÍCIO],10))*($B13<=ListaAula[HORA DE TÉRMINO]),ListaAula[EXCLUSIVO]),ListaAula[EXCLUSIVO],0),2),0)","v":0},{"$f":"IFERROR(INDEX(ListaAula[],MATCH(SUMPRODUCT((ListaAula[DIA]=HorárioDasAulas[[#Headers],[QUARTA-FEIRA]])*(ROUNDDOWN($B13,10)>=ROUNDDOWN(ListaAula[HORA DE INÍCIO],10))*($B13<=ListaAula[HORA DE TÉRMINO]),ListaAula[EXCLUSIVO]),ListaAula[EXCLUSIVO],0),2),0)","v":0},{"$f":"IFERROR(INDEX(ListaAula[],MATCH(SUMPRODUCT((ListaAula[DIA]=HorárioDasAulas[[#Headers],[QUINTA-FEIRA]])*(ROUNDDOWN($B13,10)>=ROUNDDOWN(ListaAula[HORA DE INÍCIO],10))*($B13<=ListaAula[HORA DE TÉRMINO]),ListaAula[EXCLUSIVO]),ListaAula[EXCLUSIVO],0),2),0)","v":0},{"$f":"IFERROR(INDEX(ListaAula[],MATCH(SUMPRODUCT((ListaAula[DIA]=HorárioDasAulas[[#Headers],[SEXTA-FEIRA]])*(ROUNDDOWN($B13,10)>=ROUNDDOWN(ListaAula[HORA DE INÍCIO],10))*($B13<=ListaAula[HORA DE TÉRMINO]),ListaAula[EXCLUSIVO]),ListaAula[EXCLUSIVO],0),2),0)","v":0},{"$f":"IFERROR(INDEX(ListaAula[],MATCH(SUMPRODUCT((ListaAula[DIA]=HorárioDasAulas[[#Headers],[SÁBADO]])*(ROUNDDOWN($B13,10)>=ROUNDDOWN(ListaAula[HORA DE INÍCIO],10))*($B13<=ListaAula[HORA DE TÉRMINO]),ListaAula[EXCLUSIVO]),ListaAula[EXCLUSIVO],0),2),0)","v":0}]
[null,"10:30:00",{"$f":"IFERROR(INDEX(ListaAula[],MATCH(SUMPRODUCT((ListaAula[DIA]=HorárioDasAulas[[#Headers],[DOMINGO]])*(ROUNDDOWN($B14,10)>=ROUNDDOWN(ListaAula[HORA DE INÍCIO],10))*($B14<=ListaAula[HORA DE TÉRMINO]),ListaAula[EXCLUSIVO]),ListaAula[EXCLUSIVO],0),2),0)","v":0},{"$f":"IFERROR(INDEX(ListaAula[],MATCH(SUMPRODUCT((ListaAula[DIA]=HorárioDasAulas[[#Headers],[SEGUNDA-FEIRA]])*(ROUNDDOWN($B14,10)>=ROUNDDOWN(ListaAula[HORA DE INÍCIO],10))*($B14<=ListaAula[HORA DE TÉRMINO]),ListaAula[EXCLUSIVO]),ListaAula[EXCLUSIVO],0),2),0)","v":0},{"$f":"IFERROR(INDEX(ListaAula[],MATCH(SUMPRODUCT((ListaAula[DIA]=HorárioDasAulas[[#Headers],[TERÇA-FEIRA]])*(ROUNDDOWN($B14,10)>=ROUNDDOWN(ListaAula[HORA DE INÍCIO],10))*($B14<=ListaAula[HORA DE TÉRMINO]),ListaAula[EXCLUSIVO]),ListaAula[EXCLUSIVO],0),2),0)","v":0},{"$f":"IFERROR(INDEX(ListaAula[],MATCH(SUMPRODUCT((ListaAula[DIA]=HorárioDasAulas[[#Headers],[QUARTA-FEIRA]])*(ROUNDDOWN($B14,10)>=ROUNDDOWN(ListaAula[HORA DE INÍCIO],10))*($B14<=ListaAula[HORA DE TÉRMINO]),ListaAula[EXCLUSIVO]),ListaAula[EXCLUSIVO],0),2),0)","v":0},{"$f":"IFERROR(INDEX(ListaAula[],MATCH(SUMPRODUCT((ListaAula[DIA]=HorárioDasAulas[[#Headers],[QUINTA-FEIRA]])*(ROUNDDOWN($B14,10)>=ROUNDDOWN(ListaAula[HORA DE INÍCIO],10))*($B14<=ListaAula[HORA DE TÉRMINO]),ListaAula[EXCLUSIVO]),ListaAula[EXCLUSIVO],0),2),0)","v":0},{"$f":"IFERROR(INDEX(ListaAula[],MATCH(SUMPRODUCT((ListaAula[DIA]=HorárioDasAulas[[#Headers],[SEXTA-FEIRA]])*(ROUNDDOWN($B14,10)>=ROUNDDOWN(ListaAula[HORA DE INÍCIO],10))*($B14<=ListaAula[HORA DE TÉRMINO]),ListaAula[EXCLUSIVO]),ListaAula[EXCLUSIVO],0),2),0)","v":0},{"$f":"IFERROR(INDEX(ListaAula[],MATCH(SUMPRODUCT((ListaAula[DIA]=HorárioDasAulas[[#Headers],[SÁBADO]])*(ROUNDDOWN($B14,10)>=ROUNDDOWN(ListaAula[HORA DE INÍCIO],10))*($B14<=ListaAula[HORA DE TÉRMINO]),ListaAula[EXCLUSIVO]),ListaAula[EXCLUSIVO],0),2),0)","v":0}]
[null,"10:45:00",{"$f":"IFERROR(INDEX(ListaAula[],MATCH(SUMPRODUCT((ListaAula[DIA]=HorárioDasAulas[[#Headers],[DOMINGO]])*(ROUNDDOWN($B15,10)>=ROUNDDOWN(ListaAula[HORA DE INÍCIO],10))*($B15<=ListaAula[HORA DE TÉRMINO]),ListaAula[EXCLUSIVO]),ListaAula[EXCLUSIVO],0),2),0)","v":0},{"$f":"IFERROR(INDEX(ListaAula[],MATCH(SUMPRODUCT((ListaAula[DIA]=HorárioDasAulas[[#Headers],[SEGUNDA-FEIRA]])*(ROUNDDOWN($B15,10)>=ROUNDDOWN(ListaAula[HORA DE INÍCIO],10))*($B15<=ListaAula[HORA DE TÉRMINO]),ListaAula[EXCLUSIVO]),ListaAula[EXCLUSIVO],0),2),0)","v":0},{"$f":"IFERROR(INDEX(ListaAula[],MATCH(SUMPRODUCT((ListaAula[DIA]=HorárioDasAulas[[#Headers],[TERÇA-FEIRA]])*(ROUNDDOWN($B15,10)>=ROUNDDOWN(ListaAula[HORA DE INÍCIO],10))*($B15<=ListaAula[HORA DE TÉRMINO]),ListaAula[EXCLUSIVO]),ListaAula[EXCLUSIVO],0),2),0)","v":0},{"$f":"IFERROR(INDEX(ListaAula[],MATCH(SUMPRODUCT((ListaAula[DIA]=HorárioDasAulas[[#Headers],[QUARTA-FEIRA]])*(ROUNDDOWN($B15,10)>=ROUNDDOWN(ListaAula[HORA DE INÍCIO],10))*($B15<=ListaAula[HORA DE TÉRMINO]),ListaAula[EXCLUSIVO]),ListaAula[EXCLUSIVO],0),2),0)","v":0},{"$f":"IFERROR(INDEX(ListaAula[],MATCH(SUMPRODUCT((ListaAula[DIA]=HorárioDasAulas[[#Headers],[QUINTA-FEIRA]])*(ROUNDDOWN($B15,10)>=ROUNDDOWN(ListaAula[HORA DE INÍCIO],10))*($B15<=ListaAula[HORA DE TÉRMINO]),ListaAula[EXCLUSIVO]),ListaAula[EXCLUSIVO],0),2),0)","v":0},{"$f":"IFERROR(INDEX(ListaAula[],MATCH(SUMPRODUCT((ListaAula[DIA]=HorárioDasAulas[[#Headers],[SEXTA-FEIRA]])*(ROUNDDOWN($B15,10)>=ROUNDDOWN(ListaAula[HORA DE INÍCIO],10))*($B15<=ListaAula[HORA DE TÉRMINO]),ListaAula[EXCLUSIVO]),ListaAula[EXCLUSIVO],0),2),0)","v":0},{"$f":"IFERROR(INDEX(ListaAula[],MATCH(SUMPRODUCT((ListaAula[DIA]=HorárioDasAulas[[#Headers],[SÁBADO]])*(ROUNDDOWN($B15,10)>=ROUNDDOWN(ListaAula[HORA DE INÍCIO],10))*($B15<=ListaAula[HORA DE TÉRMINO]),ListaAula[EXCLUSIVO]),ListaAula[EXCLUSIVO],0),2),0)","v":0}]
[null,"11:00:00",{"$f":"IFERROR(INDEX(ListaAula[],MATCH(SUMPRODUCT((ListaAula[DIA]=HorárioDasAulas[[#Headers],[DOMINGO]])*(ROUNDDOWN($B16,10)>=ROUNDDOWN(ListaAula[HORA DE INÍCIO],10))*($B16<=ListaAula[HORA DE TÉRMINO]),ListaAula[EXCLUSIVO]),ListaAula[EXCLUSIVO],0),2),0)","v":0},{"$f":"IFERROR(INDEX(ListaAula[],MATCH(SUMPRODUCT((ListaAula[DIA]=HorárioDasAulas[[#Headers],[SEGUNDA-FEIRA]])*(ROUNDDOWN($B16,10)>=ROUNDDOWN(ListaAula[HORA DE INÍCIO],10))*($B16<=ListaAula[HORA DE TÉRMINO]),ListaAula[EXCLUSIVO]),ListaAula[EXCLUSIVO],0),2),0)","v":0},{"$f":"IFERROR(INDEX(ListaAula[],MATCH(SUMPRODUCT((ListaAula[DIA]=HorárioDasAulas[[#Headers],[TERÇA-FEIRA]])*(ROUNDDOWN($B16,10)>=ROUNDDOWN(ListaAula[HORA DE INÍCIO],10))*($B16<=ListaAula[HORA DE TÉRMINO]),ListaAula[EXCLUSIVO]),ListaAula[EXCLUSIVO],0),2),0)","v":"HPE-295"},{"$f":"IFERROR(INDEX(ListaAula[],MATCH(SUMPRODUCT((ListaAula[DIA]=HorárioDasAulas[[#Headers],[QUARTA-FEIRA]])*(ROUNDDOWN($B16,10)>=ROUNDDOWN(ListaAula[HORA DE INÍCIO],10))*($B16<=ListaAula[HORA DE TÉRMINO]),ListaAula[EXCLUSIVO]),ListaAula[EXCLUSIVO],0),2),0)","v":0},{"$f":"IFERROR(INDEX(ListaAula[],MATCH(SUMPRODUCT((ListaAula[DIA]=HorárioDasAulas[[#Headers],[QUINTA-FEIRA]])*(ROUNDDOWN($B16,10)>=ROUNDDOWN(ListaAula[HORA DE INÍCIO],10))*($B16<=ListaAula[HORA DE TÉRMINO]),ListaAula[EXCLUSIVO]),ListaAula[EXCLUSIVO],0),2),0)","v":"HPE-295"},{"$f":"IFERROR(INDEX(ListaAula[],MATCH(SUMPRODUCT((ListaAula[DIA]=HorárioDasAulas[[#Headers],[SEXTA-FEIRA]])*(ROUNDDOWN($B16,10)>=ROUNDDOWN(ListaAula[HORA DE INÍCIO],10))*($B16<=ListaAula[HORA DE TÉRMINO]),ListaAula[EXCLUSIVO]),ListaAula[EXCLUSIVO],0),2),0)","v":0},{"$f":"IFERROR(INDEX(ListaAula[],MATCH(SUMPRODUCT((ListaAula[DIA]=HorárioDasAulas[[#Headers],[SÁBADO]])*(ROUNDDOWN($B16,10)>=ROUNDDOWN(ListaAula[HORA DE INÍCIO],10))*($B16<=ListaAula[HORA DE TÉRMINO]),ListaAula[EXCLUSIVO]),ListaAula[EXCLUSIVO],0),2),0)","v":0}]
[null,"11:15:00",{"$f":"IFERROR(INDEX(ListaAula[],MATCH(SUMPRODUCT((ListaAula[DIA]=HorárioDasAulas[[#Headers],[DOMINGO]])*(ROUNDDOWN($B17,10)>=ROUNDDOWN(ListaAula[HORA DE INÍCIO],10))*($B17<=ListaAula[HORA DE TÉRMINO]),ListaAula[EXCLUSIVO]),ListaAula[EXCLUSIVO],0),2),0)","v":0},{"$f":"IFERROR(INDEX(ListaAula[],MATCH(SUMPRODUCT((ListaAula[DIA]=HorárioDasAulas[[#Headers],[SEGUNDA-FEIRA]])*(ROUNDDOWN($B17,10)>=ROUNDDOWN(ListaAula[HORA DE INÍCIO],10))*($B17<=ListaAula[HORA DE TÉRMINO]),ListaAula[EXCLUSIVO]),ListaAula[EXCLUSIVO],0),2),0)","v":0},{"$f":"IFERROR(INDEX(ListaAula[],MATCH(SUMPRODUCT((ListaAula[DIA]=HorárioDasAulas[[#Headers],[TERÇA-FEIRA]])*(ROUNDDOWN($B17,10)>=ROUNDDOWN(ListaAula[HORA DE INÍCIO],10))*($B17<=ListaAula[HORA DE TÉRMINO]),ListaAula[EXCLUSIVO]),ListaAula[EXCLUSIVO],0),2),0)","v":"HPE-295"},{"$f":"IFERROR(INDEX(ListaAula[],MATCH(SUMPRODUCT((ListaAula[DIA]=HorárioDasAulas[[#Headers],[QUARTA-FEIRA]])*(ROUNDDOWN($B17,10)>=ROUNDDOWN(ListaAula[HORA DE INÍCIO],10))*($B17<=ListaAula[HORA DE TÉRMINO]),ListaAula[EXCLUSIVO]),ListaAula[EXCLUSIVO],0),2),0)","v":0},{"$f":"IFERROR(INDEX(ListaAula[],MATCH(SUMPRODUCT((ListaAula[DIA]=HorárioDasAulas[[#Headers],[QUINTA-FEIRA]])*(ROUNDDOWN($B17,10)>=ROUNDDOWN(ListaAula[HORA DE INÍCIO],10))*($B17<=ListaAula[HORA DE TÉRMINO]),ListaAula[EXCLUSIVO]),ListaAula[EXCLUSIVO],0),2),0)","v":"HPE-295"},{"$f":"IFERROR(INDEX(ListaAula[],MATCH(SUMPRODUCT((ListaAula[DIA]=HorárioDasAulas[[#Headers],[SEXTA-FEIRA]])*(ROUNDDOWN($B17,10)>=ROUNDDOWN(ListaAula[HORA DE INÍCIO],10))*($B17<=ListaAula[HORA DE TÉRMINO]),ListaAula[EXCLUSIVO]),ListaAula[EXCLUSIVO],0),2),0)","v":0},{"$f":"IFERROR(INDEX(ListaAula[],MATCH(SUMPRODUCT((ListaAula[DIA]=HorárioDasAulas[[#Headers],[SÁBADO]])*(ROUNDDOWN($B17,10)>=ROUNDDOWN(ListaAula[HORA DE INÍCIO],10))*($B17<=ListaAula[HORA DE TÉRMINO]),ListaAula[EXCLUSIVO]),ListaAula[EXCLUSIVO],0),2),0)","v":0}]
[null,"11:30:00",{"$f":"IFERROR(INDEX(ListaAula[],MATCH(SUMPRODUCT((ListaAula[DIA]=HorárioDasAulas[[#Headers],[DOMINGO]])*(ROUNDDOWN($B18,10)>=ROUNDDOWN(ListaAula[HORA DE INÍCIO],10))*($B18<=ListaAula[HORA DE TÉRMINO]),ListaAula[EXCLUSIVO]),ListaAula[EXCLUSIVO],0),2),0)","v":0},{"$f":"IFERROR(INDEX(ListaAula[],MATCH(SUMPRODUCT((ListaAula[DIA]=HorárioDasAulas[[#Headers],[SEGUNDA-FEIRA]])*(ROUNDDOWN($B18,10)>=ROUNDDOWN(ListaAula[HORA DE INÍCIO],10))*($B18<=ListaAula[HORA DE TÉRMINO]),ListaAula[EXCLUSIVO]),ListaAula[EXCLUSIVO],0),2),0)","v":0},{"$f":"IFERROR(INDEX(ListaAula[],MATCH(SUMPRODUCT((ListaAula[DIA]=HorárioDasAulas[[#Headers],[TERÇA-FEIRA]])*(ROUNDDOWN($B18,10)>=ROUNDDOWN(ListaAula[HORA DE INÍCIO],10))*($B18<=ListaAula[HORA DE TÉRMINO]),ListaAula[EXCLUSIVO]),ListaAula[EXCLUSIVO],0),2),0)","v":"HPE-295"},{"$f":"IFERROR(INDEX(ListaAula[],MATCH(SUMPRODUCT((ListaAula[DIA]=HorárioDasAulas[[#Headers],[QUARTA-FEIRA]])*(ROUNDDOWN($B18,10)>=ROUNDDOWN(ListaAula[HORA DE INÍCIO],10))*($B18<=ListaAula[HORA DE TÉRMINO]),ListaAula[EXCLUSIVO]),ListaAula[EXCLUSIVO],0),2),0)","v":0},{"$f":"IFERROR(INDEX(ListaAula[],MATCH(SUMPRODUCT((ListaAula[DIA]=HorárioDasAulas[[#Headers],[QUINTA-FEIRA]])*(ROUNDDOWN($B18,10)>=ROUNDDOWN(ListaAula[HORA DE INÍCIO],10))*($B18<=ListaAula[HORA DE TÉRMINO]),ListaAula[EXCLUSIVO]),ListaAula[EXCLUSIVO],0),2),0)","v":"HPE-295"},{"$f":"IFERROR(INDEX(ListaAula[],MATCH(SUMPRODUCT((ListaAula[DIA]=HorárioDasAulas[[#Headers],[SEXTA-FEIRA]])*(ROUNDDOWN($B18,10)>=ROUNDDOWN(ListaAula[HORA DE INÍCIO],10))*($B18<=ListaAula[HORA DE TÉRMINO]),ListaAula[EXCLUSIVO]),ListaAula[EXCLUSIVO],0),2),0)","v":0},{"$f":"IFERROR(INDEX(ListaAula[],MATCH(SUMPRODUCT((ListaAula[DIA]=HorárioDasAulas[[#Headers],[SÁBADO]])*(ROUNDDOWN($B18,10)>=ROUNDDOWN(ListaAula[HORA DE INÍCIO],10))*($B18<=ListaAula[HORA DE TÉRMINO]),ListaAula[EXCLUSIVO]),ListaAula[EXCLUSIVO],0),2),0)","v":0}]
[null,"11:45:00",{"$f":"IFERROR(INDEX(ListaAula[],MATCH(SUMPRODUCT((ListaAula[DIA]=HorárioDasAulas[[#Headers],[DOMINGO]])*(ROUNDDOWN($B19,10)>=ROUNDDOWN(ListaAula[HORA DE INÍCIO],10))*($B19<=ListaAula[HORA DE TÉRMINO]),ListaAula[EXCLUSIVO]),ListaAula[EXCLUSIVO],0),2),0)","v":0},{"$f":"IFERROR(INDEX(ListaAula[],MATCH(SUMPRODUCT((ListaAula[DIA]=HorárioDasAulas[[#Headers],[SEGUNDA-FEIRA]])*(ROUNDDOWN($B19,10)>=ROUNDDOWN(ListaAula[HORA DE INÍCIO],10))*($B19<=ListaAula[HORA DE TÉRMINO]),ListaAula[EXCLUSIVO]),ListaAula[EXCLUSIVO],0),2),0)","v":0},{"$f":"IFERROR(INDEX(ListaAula[],MATCH(SUMPRODUCT((ListaAula[DIA]=HorárioDasAulas[[#Headers],[TERÇA-FEIRA]])*(ROUNDDOWN($B19,10)>=ROUNDDOWN(ListaAula[HORA DE INÍCIO],10))*($B19<=ListaAula[HORA DE TÉRMINO]),ListaAula[EXCLUSIVO]),ListaAula[EXCLUSIVO],0),2),0)","v":"HPE-295"},{"$f":"IFERROR(INDEX(ListaAula[],MATCH(SUMPRODUCT((ListaAula[DIA]=HorárioDasAulas[[#Headers],[QUARTA-FEIRA]])*(ROUNDDOWN($B19,10)>=ROUNDDOWN(ListaAula[HORA DE INÍCIO],10))*($B19<=ListaAula[HORA DE TÉRMINO]),ListaAula[EXCLUSIVO]),ListaAula[EXCLUSIVO],0),2),0)","v":0},{"$f":"IFERROR(INDEX(ListaAula[],MATCH(SUMPRODUCT((ListaAula[DIA]=HorárioDasAulas[[#Headers],[QUINTA-FEIRA]])*(ROUNDDOWN($B19,10)>=ROUNDDOWN(ListaAula[HORA DE INÍCIO],10))*($B19<=ListaAula[HORA DE TÉRMINO]),ListaAula[EXCLUSIVO]),ListaAula[EXCLUSIVO],0),2),0)","v":"HPE-295"},{"$f":"IFERROR(INDEX(ListaAula[],MATCH(SUMPRODUCT((ListaAula[DIA]=HorárioDasAulas[[#Headers],[SEXTA-FEIRA]])*(ROUNDDOWN($B19,10)>=ROUNDDOWN(ListaAula[HORA DE INÍCIO],10))*($B19<=ListaAula[HORA DE TÉRMINO]),ListaAula[EXCLUSIVO]),ListaAula[EXCLUSIVO],0),2),0)","v":0},{"$f":"IFERROR(INDEX(ListaAula[],MATCH(SUMPRODUCT((ListaAula[DIA]=HorárioDasAulas[[#Headers],[SÁBADO]])*(ROUNDDOWN($B19,10)>=ROUNDDOWN(ListaAula[HORA DE INÍCIO],10))*($B19<=ListaAula[HORA DE TÉRMINO]),ListaAula[EXCLUSIVO]),ListaAula[EXCLUSIVO],0),2),0)","v":0}]
[null,"12:00:00",{"$f":"IFERROR(INDEX(ListaAula[],MATCH(SUMPRODUCT((ListaAula[DIA]=HorárioDasAulas[[#Headers],[DOMINGO]])*(ROUNDDOWN($B20,10)>=ROUNDDOWN(ListaAula[HORA DE INÍCIO],10))*($B20<=ListaAula[HORA DE TÉRMINO]),ListaAula[EXCLUSIVO]),ListaAula[EXCLUSIVO],0),2),0)","v":0},{"$f":"IFERROR(INDEX(ListaAula[],MATCH(SUMPRODUCT((ListaAula[DIA]=HorárioDasAulas[[#Headers],[SEGUNDA-FEIRA]])*(ROUNDDOWN($B20,10)>=ROUNDDOWN(ListaAula[HORA DE INÍCIO],10))*($B20<=ListaAula[HORA DE TÉRMINO]),ListaAula[EXCLUSIVO]),ListaAula[EXCLUSIVO],0),2),0)","v":0},{"$f":"IFERROR(INDEX(ListaAula[],MATCH(SUMPRODUCT((ListaAula[DIA]=HorárioDasAulas[[#Headers],[TERÇA-FEIRA]])*(ROUNDDOWN($B20,10)>=ROUNDDOWN(ListaAula[HORA DE INÍCIO],10))*($B20<=ListaAula[HORA DE TÉRMINO]),ListaAula[EXCLUSIVO]),ListaAula[EXCLUSIVO],0),2),0)","v":"HPE-295"},{"$f":"IFERROR(INDEX(ListaAula[],MATCH(SUMPRODUCT((ListaAula[DIA]=HorárioDasAulas[[#Headers],[QUARTA-FEIRA]])*(ROUNDDOWN($B20,10)>=ROUNDDOWN(ListaAula[HORA DE INÍCIO],10))*($B20<=ListaAula[HORA DE TÉRMINO]),ListaAula[EXCLUSIVO]),ListaAula[EXCLUSIVO],0),2),0)","v":0},{"$f":"IFERROR(INDEX(ListaAula[],MATCH(SUMPRODUCT((ListaAula[DIA]=HorárioDasAulas[[#Headers],[QUINTA-FEIRA]])*(ROUNDDOWN($B20,10)>=ROUNDDOWN(ListaAula[HORA DE INÍCIO],10))*($B20<=ListaAula[HORA DE TÉRMINO]),ListaAula[EXCLUSIVO]),ListaAula[EXCLUSIVO],0),2),0)","v":"HPE-295"},{"$f":"IFERROR(INDEX(ListaAula[],MATCH(SUMPRODUCT((ListaAula[DIA]=HorárioDasAulas[[#Headers],[SEXTA-FEIRA]])*(ROUNDDOWN($B20,10)>=ROUNDDOWN(ListaAula[HORA DE INÍCIO],10))*($B20<=ListaAula[HORA DE TÉRMINO]),ListaAula[EXCLUSIVO]),ListaAula[EXCLUSIVO],0),2),0)","v":0},{"$f":"IFERROR(INDEX(ListaAula[],MATCH(SUMPRODUCT((ListaAula[DIA]=HorárioDasAulas[[#Headers],[SÁBADO]])*(ROUNDDOWN($B20,10)>=ROUNDDOWN(ListaAula[HORA DE INÍCIO],10))*($B20<=ListaAula[HORA DE TÉRMINO]),ListaAula[EXCLUSIVO]),ListaAula[EXCLUSIVO],0),2),0)","v":0}]
[null,"12:15:00",{"$f":"IFERROR(INDEX(ListaAula[],MATCH(SUMPRODUCT((ListaAula[DIA]=HorárioDasAulas[[#Headers],[DOMINGO]])*(ROUNDDOWN($B21,10)>=ROUNDDOWN(ListaAula[HORA DE INÍCIO],10))*($B21<=ListaAula[HORA DE TÉRMINO]),ListaAula[EXCLUSIVO]),ListaAula[EXCLUSIVO],0),2),0)","v":0},{"$f":"IFERROR(INDEX(ListaAula[],MATCH(SUMPRODUCT((ListaAula[DIA]=HorárioDasAulas[[#Headers],[SEGUNDA-FEIRA]])*(ROUNDDOWN($B21,10)>=ROUNDDOWN(ListaAula[HORA DE INÍCIO],10))*($B21<=ListaAula[HORA DE TÉRMINO]),ListaAula[EXCLUSIVO]),ListaAula[EXCLUSIVO],0),2),0)","v":0},{"$f":"IFERROR(INDEX(ListaAula[],MATCH(SUMPRODUCT((ListaAula[DIA]=HorárioDasAulas[[#Headers],[TERÇA-FEIRA]])*(ROUNDDOWN($B21,10)>=ROUNDDOWN(ListaAula[HORA DE INÍCIO],10))*($B21<=ListaAula[HORA DE TÉRMINO]),ListaAula[EXCLUSIVO]),ListaAula[EXCLUSIVO],0),2),0)","v":0},{"$f":"IFERROR(INDEX(ListaAula[],MATCH(SUMPRODUCT((ListaAula[DIA]=HorárioDasAulas[[#Headers],[QUARTA-FEIRA]])*(ROUNDDOWN($B21,10)>=ROUNDDOWN(ListaAula[HORA DE INÍCIO],10))*($B21<=ListaAula[HORA DE TÉRMINO]),ListaAula[EXCLUSIVO]),ListaAula[EXCLUSIVO],0),2),0)","v":0},{"$f":"IFERROR(INDEX(ListaAula[],MATCH(SUMPRODUCT((ListaAula[DIA]=HorárioDasAulas[[#Headers],[QUINTA-FEIRA]])*(ROUNDDOWN($B21,10)>=ROUNDDOWN(ListaAula[HORA DE INÍCIO],10))*($B21<=ListaAula[HORA DE TÉRMINO]),ListaAula[EXCLUSIVO]),ListaAula[EXCLUSIVO],0),2),0)","v":0},{"$f":"IFERROR(INDEX(ListaAula[],MATCH(SUMPRODUCT((ListaAula[DIA]=HorárioDasAulas[[#Headers],[SEXTA-FEIRA]])*(ROUNDDOWN($B21,10)>=ROUNDDOWN(ListaAula[HORA DE INÍCIO],10))*($B21<=ListaAula[HORA DE TÉRMINO]),ListaAula[EXCLUSIVO]),ListaAula[EXCLUSIVO],0),2),0)","v":0},{"$f":"IFERROR(INDEX(ListaAula[],MATCH(SUMPRODUCT((ListaAula[DIA]=HorárioDasAulas[[#Headers],[SÁBADO]])*(ROUNDDOWN($B21,10)>=ROUNDDOWN(ListaAula[HORA DE INÍCIO],10))*($B21<=ListaAula[HORA DE TÉRMINO]),ListaAula[EXCLUSIVO]),ListaAula[EXCLUSIVO],0),2),0)","v":0}]
[null,"12:30:00",{"$f":"IFERROR(INDEX(ListaAula[],MATCH(SUMPRODUCT((ListaAula[DIA]=HorárioDasAulas[[#Headers],[DOMINGO]])*(ROUNDDOWN($B22,10)>=ROUNDDOWN(ListaAula[HORA DE INÍCIO],10))*($B22<=ListaAula[HORA DE TÉRMINO]),ListaAula[EXCLUSIVO]),ListaAula[EXCLUSIVO],0),2),0)","v":0},{"$f":"IFERROR(INDEX(ListaAula[],MATCH(SUMPRODUCT((ListaAula[DIA]=HorárioDasAulas[[#Headers],[SEGUNDA-FEIRA]])*(ROUNDDOWN($B22,10)>=ROUNDDOWN(ListaAula[HORA DE INÍCIO],10))*($B22<=ListaAula[HORA DE TÉRMINO]),ListaAula[EXCLUSIVO]),ListaAula[EXCLUSIVO],0),2),0)","v":0},{"$f":"IFERROR(INDEX(ListaAula[],MATCH(SUMPRODUCT((ListaAula[DIA]=HorárioDasAulas[[#Headers],[TERÇA-FEIRA]])*(ROUNDDOWN($B22,10)>=ROUNDDOWN(ListaAula[HORA DE INÍCIO],10))*($B22<=ListaAula[HORA DE TÉRMINO]),ListaAula[EXCLUSIVO]),ListaAula[EXCLUSIVO],0),2),0)","v":0},{"$f":"IFERROR(INDEX(ListaAula[],MATCH(SUMPRODUCT((ListaAula[DIA]=HorárioDasAulas[[#Headers],[QUARTA-FEIRA]])*(ROUNDDOWN($B22,10)>=ROUNDDOWN(ListaAula[HORA DE INÍCIO],10))*($B22<=ListaAula[HORA DE TÉRMINO]),ListaAula[EXCLUSIVO]),ListaAula[EXCLUSIVO],0),2),0)","v":0},{"$f":"IFERROR(INDEX(ListaAula[],MATCH(SUMPRODUCT((ListaAula[DIA]=HorárioDasAulas[[#Headers],[QUINTA-FEIRA]])*(ROUNDDOWN($B22,10)>=ROUNDDOWN(ListaAula[HORA DE INÍCIO],10))*($B22<=ListaAula[HORA DE TÉRMINO]),ListaAula[EXCLUSIVO]),ListaAula[EXCLUSIVO],0),2),0)","v":0},{"$f":"IFERROR(INDEX(ListaAula[],MATCH(SUMPRODUCT((ListaAula[DIA]=HorárioDasAulas[[#Headers],[SEXTA-FEIRA]])*(ROUNDDOWN($B22,10)>=ROUNDDOWN(ListaAula[HORA DE INÍCIO],10))*($B22<=ListaAula[HORA DE TÉRMINO]),ListaAula[EXCLUSIVO]),ListaAula[EXCLUSIVO],0),2),0)","v":0},{"$f":"IFERROR(INDEX(ListaAula[],MATCH(SUMPRODUCT((ListaAula[DIA]=HorárioDasAulas[[#Headers],[SÁBADO]])*(ROUNDDOWN($B22,10)>=ROUNDDOWN(ListaAula[HORA DE INÍCIO],10))*($B22<=ListaAula[HORA DE TÉRMINO]),ListaAula[EXCLUSIVO]),ListaAula[EXCLUSIVO],0),2),0)","v":0}]
[null,"12:45:00",{"$f":"IFERROR(INDEX(ListaAula[],MATCH(SUMPRODUCT((ListaAula[DIA]=HorárioDasAulas[[#Headers],[DOMINGO]])*(ROUNDDOWN($B23,10)>=ROUNDDOWN(ListaAula[HORA DE INÍCIO],10))*($B23<=ListaAula[HORA DE TÉRMINO]),ListaAula[EXCLUSIVO]),ListaAula[EXCLUSIVO],0),2),0)","v":0},{"$f":"IFERROR(INDEX(ListaAula[],MATCH(SUMPRODUCT((ListaAula[DIA]=HorárioDasAulas[[#Headers],[SEGUNDA-FEIRA]])*(ROUNDDOWN($B23,10)>=ROUNDDOWN(ListaAula[HORA DE INÍCIO],10))*($B23<=ListaAula[HORA DE TÉRMINO]),ListaAula[EXCLUSIVO]),ListaAula[EXCLUSIVO],0),2),0)","v":0},{"$f":"IFERROR(INDEX(ListaAula[],MATCH(SUMPRODUCT((ListaAula[DIA]=HorárioDasAulas[[#Headers],[TERÇA-FEIRA]])*(ROUNDDOWN($B23,10)>=ROUNDDOWN(ListaAula[HORA DE INÍCIO],10))*($B23<=ListaAula[HORA DE TÉRMINO]),ListaAula[EXCLUSIVO]),ListaAula[EXCLUSIVO],0),2),0)","v":0},{"$f":"IFERROR(INDEX(ListaAula[],MATCH(SUMPRODUCT((ListaAula[DIA]=HorárioDasAulas[[#Headers],[QUARTA-FEIRA]])*(ROUNDDOWN($B23,10)>=ROUNDDOWN(ListaAula[HORA DE INÍCIO],10))*($B23<=ListaAula[HORA DE TÉRMINO]),ListaAula[EXCLUSIVO]),ListaAula[EXCLUSIVO],0),2),0)","v":0},{"$f":"IFERROR(INDEX(ListaAula[],MATCH(SUMPRODUCT((ListaAula[DIA]=HorárioDasAulas[[#Headers],[QUINTA-FEIRA]])*(ROUNDDOWN($B23,10)>=ROUNDDOWN(ListaAula[HORA DE INÍCIO],10))*($B23<=ListaAula[HORA DE TÉRMINO]),ListaAula[EXCLUSIVO]),ListaAula[EXCLUSIVO],0),2),0)","v":0},{"$f":"IFERROR(INDEX(ListaAula[],MATCH(SUMPRODUCT((ListaAula[DIA]=HorárioDasAulas[[#Headers],[SEXTA-FEIRA]])*(ROUNDDOWN($B23,10)>=ROUNDDOWN(ListaAula[HORA DE INÍCIO],10))*($B23<=ListaAula[HORA DE TÉRMINO]),ListaAula[EXCLUSIVO]),ListaAula[EXCLUSIVO],0),2),0)","v":0},{"$f":"IFERROR(INDEX(ListaAula[],MATCH(SUMPRODUCT((ListaAula[DIA]=HorárioDasAulas[[#Headers],[SÁBADO]])*(ROUNDDOWN($B23,10)>=ROUNDDOWN(ListaAula[HORA DE INÍCIO],10))*($B23<=ListaAula[HORA DE TÉRMINO]),ListaAula[EXCLUSIVO]),ListaAula[EXCLUSIVO],0),2),0)","v":0}]
[null,"13:00:00",{"$f":"IFERROR(INDEX(ListaAula[],MATCH(SUMPRODUCT((ListaAula[DIA]=HorárioDasAulas[[#Headers],[DOMINGO]])*(ROUNDDOWN($B24,10)>=ROUNDDOWN(ListaAula[HORA DE INÍCIO],10))*($B24<=ListaAula[HORA DE TÉRMINO]),ListaAula[EXCLUSIVO]),ListaAula[EXCLUSIVO],0),2),0)","v":0},{"$f":"IFERROR(INDEX(ListaAula[],MATCH(SUMPRODUCT((ListaAula[DIA]=HorárioDasAulas[[#Headers],[SEGUNDA-FEIRA]])*(ROUNDDOWN($B24,10)>=ROUNDDOWN(ListaAula[HORA DE INÍCIO],10))*($B24<=ListaAula[HORA DE TÉRMINO]),ListaAula[EXCLUSIVO]),ListaAula[EXCLUSIVO],0),2),0)","v":"WR-121"},{"$f":"IFERROR(INDEX(ListaAula[],MATCH(SUMPRODUCT((ListaAula[DIA]=HorárioDasAulas[[#Headers],[TERÇA-FEIRA]])*(ROUNDDOWN($B24,10)>=ROUNDDOWN(ListaAula[HORA DE INÍCIO],10))*($B24<=ListaAula[HORA DE TÉRMINO]),ListaAula[EXCLUSIVO]),ListaAula[EXCLUSIVO],0),2),0)","v":0},{"$f":"IFERROR(INDEX(ListaAula[],MATCH(SUMPRODUCT((ListaAula[DIA]=HorárioDasAulas[[#Headers],[QUARTA-FEIRA]])*(ROUNDDOWN($B24,10)>=ROUNDDOWN(ListaAula[HORA DE INÍCIO],10))*($B24<=ListaAula[HORA DE TÉRMINO]),ListaAula[EXCLUSIVO]),ListaAula[EXCLUSIVO],0),2),0)","v":"WR-121"},{"$f":"IFERROR(INDEX(ListaAula[],MATCH(SUMPRODUCT((ListaAula[DIA]=HorárioDasAulas[[#Headers],[QUINTA-FEIRA]])*(ROUNDDOWN($B24,10)>=ROUNDDOWN(ListaAula[HORA DE INÍCIO],10))*($B24<=ListaAula[HORA DE TÉRMINO]),ListaAula[EXCLUSIVO]),ListaAula[EXCLUSIVO],0),2),0)","v":0},{"$f":"IFERROR(INDEX(ListaAula[],MATCH(SUMPRODUCT((ListaAula[DIA]=HorárioDasAulas[[#Headers],[SEXTA-FEIRA]])*(ROUNDDOWN($B24,10)>=ROUNDDOWN(ListaAula[HORA DE INÍCIO],10))*($B24<=ListaAula[HORA DE TÉRMINO]),ListaAula[EXCLUSIVO]),ListaAula[EXCLUSIVO],0),2),0)","v":0},{"$f":"IFERROR(INDEX(ListaAula[],MATCH(SUMPRODUCT((ListaAula[DIA]=HorárioDasAulas[[#Headers],[SÁBADO]])*(ROUNDDOWN($B24,10)>=ROUNDDOWN(ListaAula[HORA DE INÍCIO],10))*($B24<=ListaAula[HORA DE TÉRMINO]),ListaAula[EXCLUSIVO]),ListaAula[EXCLUSIVO],0),2),0)","v":0}]
[null,"13:15:00",{"$f":"IFERROR(INDEX(ListaAula[],MATCH(SUMPRODUCT((ListaAula[DIA]=HorárioDasAulas[[#Headers],[DOMINGO]])*(ROUNDDOWN($B25,10)>=ROUNDDOWN(ListaAula[HORA DE INÍCIO],10))*($B25<=ListaAula[HORA DE TÉRMINO]),ListaAula[EXCLUSIVO]),ListaAula[EXCLUSIVO],0),2),0)","v":0},{"$f":"IFERROR(INDEX(ListaAula[],MATCH(SUMPRODUCT((ListaAula[DIA]=HorárioDasAulas[[#Headers],[SEGUNDA-FEIRA]])*(ROUNDDOWN($B25,10)>=ROUNDDOWN(ListaAula[HORA DE INÍCIO],10))*($B25<=ListaAula[HORA DE TÉRMINO]),ListaAula[EXCLUSIVO]),ListaAula[EXCLUSIVO],0),2),0)","v":"WR-121"},{"$f":"IFERROR(INDEX(ListaAula[],MATCH(SUMPRODUCT((ListaAula[DIA]=HorárioDasAulas[[#Headers],[TERÇA-FEIRA]])*(ROUNDDOWN($B25,10)>=ROUNDDOWN(ListaAula[HORA DE INÍCIO],10))*($B25<=ListaAula[HORA DE TÉRMINO]),ListaAula[EXCLUSIVO]),ListaAula[EXCLUSIVO],0),2),0)","v":0},{"$f":"IFERROR(INDEX(ListaAula[],MATCH(SUMPRODUCT((ListaAula[DIA]=HorárioDasAulas[[#Headers],[QUARTA-FEIRA]])*(ROUNDDOWN($B25,10)>=ROUNDDOWN(ListaAula[HORA DE INÍCIO],10))*($B25<=ListaAula[HORA DE TÉRMINO]),ListaAula[EXCLUSIVO]),ListaAula[EXCLUSIVO],0),2),0)","v":"WR-121"},{"$f":"IFERROR(INDEX(ListaAula[],MATCH(SUMPRODUCT((ListaAula[DIA]=HorárioDasAulas[[#Headers],[QUINTA-FEIRA]])*(ROUNDDOWN($B25,10)>=ROUNDDOWN(ListaAula[HORA DE INÍCIO],10))*($B25<=ListaAula[HORA DE TÉRMINO]),ListaAula[EXCLUSIVO]),ListaAula[EXCLUSIVO],0),2),0)","v":0},{"$f":"IFERROR(INDEX(ListaAula[],MATCH(SUMPRODUCT((ListaAula[DIA]=HorárioDasAulas[[#Headers],[SEXTA-FEIRA]])*(ROUNDDOWN($B25,10)>=ROUNDDOWN(ListaAula[HORA DE INÍCIO],10))*($B25<=ListaAula[HORA DE TÉRMINO]),ListaAula[EXCLUSIVO]),ListaAula[EXCLUSIVO],0),2),0)","v":0},{"$f":"IFERROR(INDEX(ListaAula[],MATCH(SUMPRODUCT((ListaAula[DIA]=HorárioDasAulas[[#Headers],[SÁBADO]])*(ROUNDDOWN($B25,10)>=ROUNDDOWN(ListaAula[HORA DE INÍCIO],10))*($B25<=ListaAula[HORA DE TÉRMINO]),ListaAula[EXCLUSIVO]),ListaAula[EXCLUSIVO],0),2),0)","v":0}]
[null,"13:30:00",{"$f":"IFERROR(INDEX(ListaAula[],MATCH(SUMPRODUCT((ListaAula[DIA]=HorárioDasAulas[[#Headers],[DOMINGO]])*(ROUNDDOWN($B26,10)>=ROUNDDOWN(ListaAula[HORA DE INÍCIO],10))*($B26<=ListaAula[HORA DE TÉRMINO]),ListaAula[EXCLUSIVO]),ListaAula[EXCLUSIVO],0),2),0)","v":0},{"$f":"IFERROR(INDEX(ListaAula[],MATCH(SUMPRODUCT((ListaAula[DIA]=HorárioDasAulas[[#Headers],[SEGUNDA-FEIRA]])*(ROUNDDOWN($B26,10)>=ROUNDDOWN(ListaAula[HORA DE INÍCIO],10))*($B26<=ListaAula[HORA DE TÉRMINO]),ListaAula[EXCLUSIVO]),ListaAula[EXCLUSIVO],0),2),0)","v":"WR-121"},{"$f":"IFERROR(INDEX(ListaAula[],MATCH(SUMPRODUCT((ListaAula[DIA]=HorárioDasAulas[[#Headers],[TERÇA-FEIRA]])*(ROUNDDOWN($B26,10)>=ROUNDDOWN(ListaAula[HORA DE INÍCIO],10))*($B26<=ListaAula[HORA DE TÉRMINO]),ListaAula[EXCLUSIVO]),ListaAula[EXCLUSIVO],0),2),0)","v":0},{"$f":"IFERROR(INDEX(ListaAula[],MATCH(SUMPRODUCT((ListaAula[DIA]=HorárioDasAulas[[#Headers],[QUARTA-FEIRA]])*(ROUNDDOWN($B26,10)>=ROUNDDOWN(ListaAula[HORA DE INÍCIO],10))*($B26<=ListaAula[HORA DE TÉRMINO]),ListaAula[EXCLUSIVO]),ListaAula[EXCLUSIVO],0),2),0)","v":"WR-121"},{"$f":"IFERROR(INDEX(ListaAula[],MATCH(SUMPRODUCT((ListaAula[DIA]=HorárioDasAulas[[#Headers],[QUINTA-FEIRA]])*(ROUNDDOWN($B26,10)>=ROUNDDOWN(ListaAula[HORA DE INÍCIO],10))*($B26<=ListaAula[HORA DE TÉRMINO]),ListaAula[EXCLUSIVO]),ListaAula[EXCLUSIVO],0),2),0)","v":0},{"$f":"IFERROR(INDEX(ListaAula[],MATCH(SUMPRODUCT((ListaAula[DIA]=HorárioDasAulas[[#Headers],[SEXTA-FEIRA]])*(ROUNDDOWN($B26,10)>=ROUNDDOWN(ListaAula[HORA DE INÍCIO],10))*($B26<=ListaAula[HORA DE TÉRMINO]),ListaAula[EXCLUSIVO]),ListaAula[EXCLUSIVO],0),2),0)","v":0},{"$f":"IFERROR(INDEX(ListaAula[],MATCH(SUMPRODUCT((ListaAula[DIA]=HorárioDasAulas[[#Headers],[SÁBADO]])*(ROUNDDOWN($B26,10)>=ROUNDDOWN(ListaAula[HORA DE INÍCIO],10))*($B26<=ListaAula[HORA DE TÉRMINO]),ListaAula[EXCLUSIVO]),ListaAula[EXCLUSIVO],0),2),0)","v":0}]
[null,"13:45:00",{"$f":"IFERROR(INDEX(ListaAula[],MATCH(SUMPRODUCT((ListaAula[DIA]=HorárioDasAulas[[#Headers],[DOMINGO]])*(ROUNDDOWN($B27,10)>=ROUNDDOWN(ListaAula[HORA DE INÍCIO],10))*($B27<=ListaAula[HORA DE TÉRMINO]),ListaAula[EXCLUSIVO]),ListaAula[EXCLUSIVO],0),2),0)","v":0},{"$f":"IFERROR(INDEX(ListaAula[],MATCH(SUMPRODUCT((ListaAula[DIA]=HorárioDasAulas[[#Headers],[SEGUNDA-FEIRA]])*(ROUNDDOWN($B27,10)>=ROUNDDOWN(ListaAula[HORA DE INÍCIO],10))*($B27<=ListaAula[HORA DE TÉRMINO]),ListaAula[EXCLUSIVO]),ListaAula[EXCLUSIVO],0),2),0)","v":"WR-121"},{"$f":"IFERROR(INDEX(ListaAula[],MATCH(SUMPRODUCT((ListaAula[DIA]=HorárioDasAulas[[#Headers],[TERÇA-FEIRA]])*(ROUNDDOWN($B27,10)>=ROUNDDOWN(ListaAula[HORA DE INÍCIO],10))*($B27<=ListaAula[HORA DE TÉRMINO]),ListaAula[EXCLUSIVO]),ListaAula[EXCLUSIVO],0),2),0)","v":0},{"$f":"IFERROR(INDEX(ListaAula[],MATCH(SUMPRODUCT((ListaAula[DIA]=HorárioDasAulas[[#Headers],[QUARTA-FEIRA]])*(ROUNDDOWN($B27,10)>=ROUNDDOWN(ListaAula[HORA DE INÍCIO],10))*($B27<=ListaAula[HORA DE TÉRMINO]),ListaAula[EXCLUSIVO]),ListaAula[EXCLUSIVO],0),2),0)","v":"WR-121"},{"$f":"IFERROR(INDEX(ListaAula[],MATCH(SUMPRODUCT((ListaAula[DIA]=HorárioDasAulas[[#Headers],[QUINTA-FEIRA]])*(ROUNDDOWN($B27,10)>=ROUNDDOWN(ListaAula[HORA DE INÍCIO],10))*($B27<=ListaAula[HORA DE TÉRMINO]),ListaAula[EXCLUSIVO]),ListaAula[EXCLUSIVO],0),2),0)","v":0},{"$f":"IFERROR(INDEX(ListaAula[],MATCH(SUMPRODUCT((ListaAula[DIA]=HorárioDasAulas[[#Headers],[SEXTA-FEIRA]])*(ROUNDDOWN($B27,10)>=ROUNDDOWN(ListaAula[HORA DE INÍCIO],10))*($B27<=ListaAula[HORA DE TÉRMINO]),ListaAula[EXCLUSIVO]),ListaAula[EXCLUSIVO],0),2),0)","v":0},{"$f":"IFERROR(INDEX(ListaAula[],MATCH(SUMPRODUCT((ListaAula[DIA]=HorárioDasAulas[[#Headers],[SÁBADO]])*(ROUNDDOWN($B27,10)>=ROUNDDOWN(ListaAula[HORA DE INÍCIO],10))*($B27<=ListaAula[HORA DE TÉRMINO]),ListaAula[EXCLUSIVO]),ListaAula[EXCLUSIVO],0),2),0)","v":0}]
[null,"14:00:00",{"$f":"IFERROR(INDEX(ListaAula[],MATCH(SUMPRODUCT((ListaAula[DIA]=HorárioDasAulas[[#Headers],[DOMINGO]])*(ROUNDDOWN($B28,10)>=ROUNDDOWN(ListaAula[HORA DE INÍCIO],10))*($B28<=ListaAula[HORA DE TÉRMINO]),ListaAula[EXCLUSIVO]),ListaAula[EXCLUSIVO],0),2),0)","v":0},{"$f":"IFERROR(INDEX(ListaAula[],MATCH(SUMPRODUCT((ListaAula[DIA]=HorárioDasAulas[[#Headers],[SEGUNDA-FEIRA]])*(ROUNDDOWN($B28,10)>=ROUNDDOWN(ListaAula[HORA DE INÍCIO],10))*($B28<=ListaAula[HORA DE TÉRMINO]),ListaAula[EXCLUSIVO]),ListaAula[EXCLUSIVO],0),2),0)","v":"WR-121"},{"$f":"IFERROR(INDEX(ListaAula[],MATCH(SUMPRODUCT((ListaAula[DIA]=HorárioDasAulas[[#Headers],[TERÇA-FEIRA]])*(ROUNDDOWN($B28,10)>=ROUNDDOWN(ListaAula[HORA DE INÍCIO],10))*($B28<=ListaAula[HORA DE TÉRMINO]),ListaAula[EXCLUSIVO]),ListaAula[EXCLUSIVO],0),2),0)","v":0},{"$f":"IFERROR(INDEX(ListaAula[],MATCH(SUMPRODUCT((ListaAula[DIA]=HorárioDasAulas[[#Headers],[QUARTA-FEIRA]])*(ROUNDDOWN($B28,10)>=ROUNDDOWN(ListaAula[HORA DE INÍCIO],10))*($B28<=ListaAula[HORA DE TÉRMINO]),ListaAula[EXCLUSIVO]),ListaAula[EXCLUSIVO],0),2),0)","v":"WR-121"},{"$f":"IFERROR(INDEX(ListaAula[],MATCH(SUMPRODUCT((ListaAula[DIA]=HorárioDasAulas[[#Headers],[QUINTA-FEIRA]])*(ROUNDDOWN($B28,10)>=ROUNDDOWN(ListaAula[HORA DE INÍCIO],10))*($B28<=ListaAula[HORA DE TÉRMINO]),ListaAula[EXCLUSIVO]),ListaAula[EXCLUSIVO],0),2),0)","v":0},{"$f":"IFERROR(INDEX(ListaAula[],MATCH(SUMPRODUCT((ListaAula[DIA]=HorárioDasAulas[[#Headers],[SEXTA-FEIRA]])*(ROUNDDOWN($B28,10)>=ROUNDDOWN(ListaAula[HORA DE INÍCIO],10))*($B28<=ListaAula[HORA DE TÉRMINO]),ListaAula[EXCLUSIVO]),ListaAula[EXCLUSIVO],0),2),0)","v":0},{"$f":"IFERROR(INDEX(ListaAula[],MATCH(SUMPRODUCT((ListaAula[DIA]=HorárioDasAulas[[#Headers],[SÁBADO]])*(ROUNDDOWN($B28,10)>=ROUNDDOWN(ListaAula[HORA DE INÍCIO],10))*($B28<=ListaAula[HORA DE TÉRMINO]),ListaAula[EXCLUSIVO]),ListaAula[EXCLUSIVO],0),2),0)","v":0}]
[null,"14:15:00",{"$f":"IFERROR(INDEX(ListaAula[],MATCH(SUMPRODUCT((ListaAula[DIA]=HorárioDasAulas[[#Headers],[DOMINGO]])*(ROUNDDOWN($B29,10)>=ROUNDDOWN(ListaAula[HORA DE INÍCIO],10))*($B29<=ListaAula[HORA DE TÉRMINO]),ListaAula[EXCLUSIVO]),ListaAula[EXCLUSIVO],0),2),0)","v":0},{"$f":"IFERROR(INDEX(ListaAula[],MATCH(SUMPRODUCT((ListaAula[DIA]=HorárioDasAulas[[#Headers],[SEGUNDA-FEIRA]])*(ROUNDDOWN($B29,10)>=ROUNDDOWN(ListaAula[HORA DE INÍCIO],10))*($B29<=ListaAula[HORA DE TÉRMINO]),ListaAula[EXCLUSIVO]),ListaAula[EXCLUSIVO],0),2),0)","v":0},{"$f":"IFERROR(INDEX(ListaAula[],MATCH(SUMPRODUCT((ListaAula[DIA]=HorárioDasAulas[[#Headers],[TERÇA-FEIRA]])*(ROUNDDOWN($B29,10)>=ROUNDDOWN(ListaAula[HORA DE INÍCIO],10))*($B29<=ListaAula[HORA DE TÉRMINO]),ListaAula[EXCLUSIVO]),ListaAula[EXCLUSIVO],0),2),0)","v":0},{"$f":"IFERROR(INDEX(ListaAula[],MATCH(SUMPRODUCT((ListaAula[DIA]=HorárioDasAulas[[#Headers],[QUARTA-FEIRA]])*(ROUNDDOWN($B29,10)>=ROUNDDOWN(ListaAula[HORA DE INÍCIO],10))*($B29<=ListaAula[HORA DE TÉRMINO]),ListaAula[EXCLUSIVO]),ListaAula[EXCLUSIVO],0),2),0)","v":0},{"$f":"IFERROR(INDEX(ListaAula[],MATCH(SUMPRODUCT((ListaAula[DIA]=HorárioDasAulas[[#Headers],[QUINTA-FEIRA]])*(ROUNDDOWN($B29,10)>=ROUNDDOWN(ListaAula[HORA DE INÍCIO],10))*($B29<=ListaAula[HORA DE TÉRMINO]),ListaAula[EXCLUSIVO]),ListaAula[EXCLUSIVO],0),2),0)","v":0},{"$f":"IFERROR(INDEX(ListaAula[],MATCH(SUMPRODUCT((ListaAula[DIA]=HorárioDasAulas[[#Headers],[SEXTA-FEIRA]])*(ROUNDDOWN($B29,10)>=ROUNDDOWN(ListaAula[HORA DE INÍCIO],10))*($B29<=ListaAula[HORA DE TÉRMINO]),ListaAula[EXCLUSIVO]),ListaAula[EXCLUSIVO],0),2),0)","v":0},{"$f":"IFERROR(INDEX(ListaAula[],MATCH(SUMPRODUCT((ListaAula[DIA]=HorárioDasAulas[[#Headers],[SÁBADO]])*(ROUNDDOWN($B29,10)>=ROUNDDOWN(ListaAula[HORA DE INÍCIO],10))*($B29<=ListaAula[HORA DE TÉRMINO]),ListaAula[EXCLUSIVO]),ListaAula[EXCLUSIVO],0),2),0)","v":0}]
[null,"14:30:00",{"$f":"IFERROR(INDEX(ListaAula[],MATCH(SUMPRODUCT((ListaAula[DIA]=HorárioDasAulas[[#Headers],[DOMINGO]])*(ROUNDDOWN($B30,10)>=ROUNDDOWN(ListaAula[HORA DE INÍCIO],10))*($B30<=ListaAula[HORA DE TÉRMINO]),ListaAula[EXCLUSIVO]),ListaAula[EXCLUSIVO],0),2),0)","v":0},{"$f":"IFERROR(INDEX(ListaAula[],MATCH(SUMPRODUCT((ListaAula[DIA]=HorárioDasAulas[[#Headers],[SEGUNDA-FEIRA]])*(ROUNDDOWN($B30,10)>=ROUNDDOWN(ListaAula[HORA DE INÍCIO],10))*($B30<=ListaAula[HORA DE TÉRMINO]),ListaAula[EXCLUSIVO]),ListaAula[EXCLUSIVO],0),2),0)","v":0},{"$f":"IFERROR(INDEX(ListaAula[],MATCH(SUMPRODUCT((ListaAula[DIA]=HorárioDasAulas[[#Headers],[TERÇA-FEIRA]])*(ROUNDDOWN($B30,10)>=ROUNDDOWN(ListaAula[HORA DE INÍCIO],10))*($B30<=ListaAula[HORA DE TÉRMINO]),ListaAula[EXCLUSIVO]),ListaAula[EXCLUSIVO],0),2),0)","v":0},{"$f":"IFERROR(INDEX(ListaAula[],MATCH(SUMPRODUCT((ListaAula[DIA]=HorárioDasAulas[[#Headers],[QUARTA-FEIRA]])*(ROUNDDOWN($B30,10)>=ROUNDDOWN(ListaAula[HORA DE INÍCIO],10))*($B30<=ListaAula[HORA DE TÉRMINO]),ListaAula[EXCLUSIVO]),ListaAula[EXCLUSIVO],0),2),0)","v":0},{"$f":"IFERROR(INDEX(ListaAula[],MATCH(SUMPRODUCT((ListaAula[DIA]=HorárioDasAulas[[#Headers],[QUINTA-FEIRA]])*(ROUNDDOWN($B30,10)>=ROUNDDOWN(ListaAula[HORA DE INÍCIO],10))*($B30<=ListaAula[HORA DE TÉRMINO]),ListaAula[EXCLUSIVO]),ListaAula[EXCLUSIVO],0),2),0)","v":0},{"$f":"IFERROR(INDEX(ListaAula[],MATCH(SUMPRODUCT((ListaAula[DIA]=HorárioDasAulas[[#Headers],[SEXTA-FEIRA]])*(ROUNDDOWN($B30,10)>=ROUNDDOWN(ListaAula[HORA DE INÍCIO],10))*($B30<=ListaAula[HORA DE TÉRMINO]),ListaAula[EXCLUSIVO]),ListaAula[EXCLUSIVO],0),2),0)","v":0},{"$f":"IFERROR(INDEX(ListaAula[],MATCH(SUMPRODUCT((ListaAula[DIA]=HorárioDasAulas[[#Headers],[SÁBADO]])*(ROUNDDOWN($B30,10)>=ROUNDDOWN(ListaAula[HORA DE INÍCIO],10))*($B30<=ListaAula[HORA DE TÉRMINO]),ListaAula[EXCLUSIVO]),ListaAula[EXCLUSIVO],0),2),0)","v":0}]
[null,"14:45:00",{"$f":"IFERROR(INDEX(ListaAula[],MATCH(SUMPRODUCT((ListaAula[DIA]=HorárioDasAulas[[#Headers],[DOMINGO]])*(ROUNDDOWN($B31,10)>=ROUNDDOWN(ListaAula[HORA DE INÍCIO],10))*($B31<=ListaAula[HORA DE TÉRMINO]),ListaAula[EXCLUSIVO]),ListaAula[EXCLUSIVO],0),2),0)","v":0},{"$f":"IFERROR(INDEX(ListaAula[],MATCH(SUMPRODUCT((ListaAula[DIA]=HorárioDasAulas[[#Headers],[SEGUNDA-FEIRA]])*(ROUNDDOWN($B31,10)>=ROUNDDOWN(ListaAula[HORA DE INÍCIO],10))*($B31<=ListaAula[HORA DE TÉRMINO]),ListaAula[EXCLUSIVO]),ListaAula[EXCLUSIVO],0),2),0)","v":0},{"$f":"IFERROR(INDEX(ListaAula[],MATCH(SUMPRODUCT((ListaAula[DIA]=HorárioDasAulas[[#Headers],[TERÇA-FEIRA]])*(ROUNDDOWN($B31,10)>=ROUNDDOWN(ListaAula[HORA DE INÍCIO],10))*($B31<=ListaAula[HORA DE TÉRMINO]),ListaAula[EXCLUSIVO]),ListaAula[EXCLUSIVO],0),2),0)","v":0},{"$f":"IFERROR(INDEX(ListaAula[],MATCH(SUMPRODUCT((ListaAula[DIA]=HorárioDasAulas[[#Headers],[QUARTA-FEIRA]])*(ROUNDDOWN($B31,10)>=ROUNDDOWN(ListaAula[HORA DE INÍCIO],10))*($B31<=ListaAula[HORA DE TÉRMINO]),ListaAula[EXCLUSIVO]),ListaAula[EXCLUSIVO],0),2),0)","v":0},{"$f":"IFERROR(INDEX(ListaAula[],MATCH(SUMPRODUCT((ListaAula[DIA]=HorárioDasAulas[[#Headers],[QUINTA-FEIRA]])*(ROUNDDOWN($B31,10)>=ROUNDDOWN(ListaAula[HORA DE INÍCIO],10))*($B31<=ListaAula[HORA DE TÉRMINO]),ListaAula[EXCLUSIVO]),ListaAula[EXCLUSIVO],0),2),0)","v":0},{"$f":"IFERROR(INDEX(ListaAula[],MATCH(SUMPRODUCT((ListaAula[DIA]=HorárioDasAulas[[#Headers],[SEXTA-FEIRA]])*(ROUNDDOWN($B31,10)>=ROUNDDOWN(ListaAula[HORA DE INÍCIO],10))*($B31<=ListaAula[HORA DE TÉRMINO]),ListaAula[EXCLUSIVO]),ListaAula[EXCLUSIVO],0),2),0)","v":0},{"$f":"IFERROR(INDEX(ListaAula[],MATCH(SUMPRODUCT((ListaAula[DIA]=HorárioDasAulas[[#Headers],[SÁBADO]])*(ROUNDDOWN($B31,10)>=ROUNDDOWN(ListaAula[HORA DE INÍCIO],10))*($B31<=ListaAula[HORA DE TÉRMINO]),ListaAula[EXCLUSIVO]),ListaAula[EXCLUSIVO],0),2),0)","v":0}]
[null,"15:00:00",{"$f":"IFERROR(INDEX(ListaAula[],MATCH(SUMPRODUCT((ListaAula[DIA]=HorárioDasAulas[[#Headers],[DOMINGO]])*(ROUNDDOWN($B32,10)>=ROUNDDOWN(ListaAula[HORA DE INÍCIO],10))*($B32<=ListaAula[HORA DE TÉRMINO]),ListaAula[EXCLUSIVO]),ListaAula[EXCLUSIVO],0),2),0)","v":0},{"$f":"IFERROR(INDEX(ListaAula[],MATCH(SUMPRODUCT((ListaAula[DIA]=HorárioDasAulas[[#Headers],[SEGUNDA-FEIRA]])*(ROUNDDOWN($B32,10)>=ROUNDDOWN(ListaAula[HORA DE INÍCIO],10))*($B32<=ListaAula[HORA DE TÉRMINO]),ListaAula[EXCLUSIVO]),ListaAula[EXCLUSIVO],0),2),0)","v":0},{"$f":"IFERROR(INDEX(ListaAula[],MATCH(SUMPRODUCT((ListaAula[DIA]=HorárioDasAulas[[#Headers],[TERÇA-FEIRA]])*(ROUNDDOWN($B32,10)>=ROUNDDOWN(ListaAula[HORA DE INÍCIO],10))*($B32<=ListaAula[HORA DE TÉRMINO]),ListaAula[EXCLUSIVO]),ListaAula[EXCLUSIVO],0),2),0)","v":0},{"$f":"IFERROR(INDEX(ListaAula[],MATCH(SUMPRODUCT((ListaAula[DIA]=HorárioDasAulas[[#Headers],[QUARTA-FEIRA]])*(ROUNDDOWN($B32,10)>=ROUNDDOWN(ListaAula[HORA DE INÍCIO],10))*($B32<=ListaAula[HORA DE TÉRMINO]),ListaAula[EXCLUSIVO]),ListaAula[EXCLUSIVO],0),2),0)","v":0},{"$f":"IFERROR(INDEX(ListaAula[],MATCH(SUMPRODUCT((ListaAula[DIA]=HorárioDasAulas[[#Headers],[QUINTA-FEIRA]])*(ROUNDDOWN($B32,10)>=ROUNDDOWN(ListaAula[HORA DE INÍCIO],10))*($B32<=ListaAula[HORA DE TÉRMINO]),ListaAula[EXCLUSIVO]),ListaAula[EXCLUSIVO],0),2),0)","v":0},{"$f":"IFERROR(INDEX(ListaAula[],MATCH(SUMPRODUCT((ListaAula[DIA]=HorárioDasAulas[[#Headers],[SEXTA-FEIRA]])*(ROUNDDOWN($B32,10)>=ROUNDDOWN(ListaAula[HORA DE INÍCIO],10))*($B32<=ListaAula[HORA DE TÉRMINO]),ListaAula[EXCLUSIVO]),ListaAula[EXCLUSIVO],0),2),0)","v":0},{"$f":"IFERROR(INDEX(ListaAula[],MATCH(SUMPRODUCT((ListaAula[DIA]=HorárioDasAulas[[#Headers],[SÁBADO]])*(ROUNDDOWN($B32,10)>=ROUNDDOWN(ListaAula[HORA DE INÍCIO],10))*($B32<=ListaAula[HORA DE TÉRMINO]),ListaAula[EXCLUSIVO]),ListaAula[EXCLUSIVO],0),2),0)","v":0}]
[null,"15:15:00",{"$f":"IFERROR(INDEX(ListaAula[],MATCH(SUMPRODUCT((ListaAula[DIA]=HorárioDasAulas[[#Headers],[DOMINGO]])*(ROUNDDOWN($B33,10)>=ROUNDDOWN(ListaAula[HORA DE INÍCIO],10))*($B33<=ListaAula[HORA DE TÉRMINO]),ListaAula[EXCLUSIVO]),ListaAula[EXCLUSIVO],0),2),0)","v":0},{"$f":"IFERROR(INDEX(ListaAula[],MATCH(SUMPRODUCT((ListaAula[DIA]=HorárioDasAulas[[#Headers],[SEGUNDA-FEIRA]])*(ROUNDDOWN($B33,10)>=ROUNDDOWN(ListaAula[HORA DE INÍCIO],10))*($B33<=ListaAula[HORA DE TÉRMINO]),ListaAula[EXCLUSIVO]),ListaAula[EXCLUSIVO],0),2),0)","v":0},{"$f":"IFERROR(INDEX(ListaAula[],MATCH(SUMPRODUCT((ListaAula[DIA]=HorárioDasAulas[[#Headers],[TERÇA-FEIRA]])*(ROUNDDOWN($B33,10)>=ROUNDDOWN(ListaAula[HORA DE INÍCIO],10))*($B33<=ListaAula[HORA DE TÉRMINO]),ListaAula[EXCLUSIVO]),ListaAula[EXCLUSIVO],0),2),0)","v":0},{"$f":"IFERROR(INDEX(ListaAula[],MATCH(SUMPRODUCT((ListaAula[DIA]=HorárioDasAulas[[#Headers],[QUARTA-FEIRA]])*(ROUNDDOWN($B33,10)>=ROUNDDOWN(ListaAula[HORA DE INÍCIO],10))*($B33<=ListaAula[HORA DE TÉRMINO]),ListaAula[EXCLUSIVO]),ListaAula[EXCLUSIVO],0),2),0)","v":0},{"$f":"IFERROR(INDEX(ListaAula[],MATCH(SUMPRODUCT((ListaAula[DIA]=HorárioDasAulas[[#Headers],[QUINTA-FEIRA]])*(ROUNDDOWN($B33,10)>=ROUNDDOWN(ListaAula[HORA DE INÍCIO],10))*($B33<=ListaAula[HORA DE TÉRMINO]),ListaAula[EXCLUSIVO]),ListaAula[EXCLUSIVO],0),2),0)","v":0},{"$f":"IFERROR(INDEX(ListaAula[],MATCH(SUMPRODUCT((ListaAula[DIA]=HorárioDasAulas[[#Headers],[SEXTA-FEIRA]])*(ROUNDDOWN($B33,10)>=ROUNDDOWN(ListaAula[HORA DE INÍCIO],10))*($B33<=ListaAula[HORA DE TÉRMINO]),ListaAula[EXCLUSIVO]),ListaAula[EXCLUSIVO],0),2),0)","v":0},{"$f":"IFERROR(INDEX(ListaAula[],MATCH(SUMPRODUCT((ListaAula[DIA]=HorárioDasAulas[[#Headers],[SÁBADO]])*(ROUNDDOWN($B33,10)>=ROUNDDOWN(ListaAula[HORA DE INÍCIO],10))*($B33<=ListaAula[HORA DE TÉRMINO]),ListaAula[EXCLUSIVO]),ListaAula[EXCLUSIVO],0),2),0)","v":0}]
[null,"15:30:00",{"$f":"IFERROR(INDEX(ListaAula[],MATCH(SUMPRODUCT((ListaAula[DIA]=HorárioDasAulas[[#Headers],[DOMINGO]])*(ROUNDDOWN($B34,10)>=ROUNDDOWN(ListaAula[HORA DE INÍCIO],10))*($B34<=ListaAula[HORA DE TÉRMINO]),ListaAula[EXCLUSIVO]),ListaAula[EXCLUSIVO],0),2),0)","v":0},{"$f":"IFERROR(INDEX(ListaAula[],MATCH(SUMPRODUCT((ListaAula[DIA]=HorárioDasAulas[[#Headers],[SEGUNDA-FEIRA]])*(ROUNDDOWN($B34,10)>=ROUNDDOWN(ListaAula[HORA DE INÍCIO],10))*($B34<=ListaAula[HORA DE TÉRMINO]),ListaAula[EXCLUSIVO]),ListaAula[EXCLUSIVO],0),2),0)","v":0},{"$f":"IFERROR(INDEX(ListaAula[],MATCH(SUMPRODUCT((ListaAula[DIA]=HorárioDasAulas[[#Headers],[TERÇA-FEIRA]])*(ROUNDDOWN($B34,10)>=ROUNDDOWN(ListaAula[HORA DE INÍCIO],10))*($B34<=ListaAula[HORA DE TÉRMINO]),ListaAula[EXCLUSIVO]),ListaAula[EXCLUSIVO],0),2),0)","v":0},{"$f":"IFERROR(INDEX(ListaAula[],MATCH(SUMPRODUCT((ListaAula[DIA]=HorárioDasAulas[[#Headers],[QUARTA-FEIRA]])*(ROUNDDOWN($B34,10)>=ROUNDDOWN(ListaAula[HORA DE INÍCIO],10))*($B34<=ListaAula[HORA DE TÉRMINO]),ListaAula[EXCLUSIVO]),ListaAula[EXCLUSIVO],0),2),0)","v":0},{"$f":"IFERROR(INDEX(ListaAula[],MATCH(SUMPRODUCT((ListaAula[DIA]=HorárioDasAulas[[#Headers],[QUINTA-FEIRA]])*(ROUNDDOWN($B34,10)>=ROUNDDOWN(ListaAula[HORA DE INÍCIO],10))*($B34<=ListaAula[HORA DE TÉRMINO]),ListaAula[EXCLUSIVO]),ListaAula[EXCLUSIVO],0),2),0)","v":0},{"$f":"IFERROR(INDEX(ListaAula[],MATCH(SUMPRODUCT((ListaAula[DIA]=HorárioDasAulas[[#Headers],[SEXTA-FEIRA]])*(ROUNDDOWN($B34,10)>=ROUNDDOWN(ListaAula[HORA DE INÍCIO],10))*($B34<=ListaAula[HORA DE TÉRMINO]),ListaAula[EXCLUSIVO]),ListaAula[EXCLUSIVO],0),2),0)","v":0},{"$f":"IFERROR(INDEX(ListaAula[],MATCH(SUMPRODUCT((ListaAula[DIA]=HorárioDasAulas[[#Headers],[SÁBADO]])*(ROUNDDOWN($B34,10)>=ROUNDDOWN(ListaAula[HORA DE INÍCIO],10))*($B34<=ListaAula[HORA DE TÉRMINO]),ListaAula[EXCLUSIVO]),ListaAula[EXCLUSIVO],0),2),0)","v":0}]
[null,"15:45:00",{"$f":"IFERROR(INDEX(ListaAula[],MATCH(SUMPRODUCT((ListaAula[DIA]=HorárioDasAulas[[#Headers],[DOMINGO]])*(ROUNDDOWN($B35,10)>=ROUNDDOWN(ListaAula[HORA DE INÍCIO],10))*($B35<=ListaAula[HORA DE TÉRMINO]),ListaAula[EXCLUSIVO]),ListaAula[EXCLUSIVO],0),2),0)","v":0},{"$f":"IFERROR(INDEX(ListaAula[],MATCH(SUMPRODUCT((ListaAula[DIA]=HorárioDasAulas[[#Headers],[SEGUNDA-FEIRA]])*(ROUNDDOWN($B35,10)>=ROUNDDOWN(ListaAula[HORA DE INÍCIO],10))*($B35<=ListaAula[HORA DE TÉRMINO]),ListaAula[EXCLUSIVO]),ListaAula[EXCLUSIVO],0),2),0)","v":0},{"$f":"IFERROR(INDEX(ListaAula[],MATCH(SUMPRODUCT((ListaAula[DIA]=HorárioDasAulas[[#Headers],[TERÇA-FEIRA]])*(ROUNDDOWN($B35,10)>=ROUNDDOWN(ListaAula[HORA DE INÍCIO],10))*($B35<=ListaAula[HORA DE TÉRMINO]),ListaAula[EXCLUSIVO]),ListaAula[EXCLUSIVO],0),2),0)","v":0},{"$f":"IFERROR(INDEX(ListaAula[],MATCH(SUMPRODUCT((ListaAula[DIA]=HorárioDasAulas[[#Headers],[QUARTA-FEIRA]])*(ROUNDDOWN($B35,10)>=ROUNDDOWN(ListaAula[HORA DE INÍCIO],10))*($B35<=ListaAula[HORA DE TÉRMINO]),ListaAula[EXCLUSIVO]),ListaAula[EXCLUSIVO],0),2),0)","v":0},{"$f":"IFERROR(INDEX(ListaAula[],MATCH(SUMPRODUCT((ListaAula[DIA]=HorárioDasAulas[[#Headers],[QUINTA-FEIRA]])*(ROUNDDOWN($B35,10)>=ROUNDDOWN(ListaAula[HORA DE INÍCIO],10))*($B35<=ListaAula[HORA DE TÉRMINO]),ListaAula[EXCLUSIVO]),ListaAula[EXCLUSIVO],0),2),0)","v":0},{"$f":"IFERROR(INDEX(ListaAula[],MATCH(SUMPRODUCT((ListaAula[DIA]=HorárioDasAulas[[#Headers],[SEXTA-FEIRA]])*(ROUNDDOWN($B35,10)>=ROUNDDOWN(ListaAula[HORA DE INÍCIO],10))*($B35<=ListaAula[HORA DE TÉRMINO]),ListaAula[EXCLUSIVO]),ListaAula[EXCLUSIVO],0),2),0)","v":0},{"$f":"IFERROR(INDEX(ListaAula[],MATCH(SUMPRODUCT((ListaAula[DIA]=HorárioDasAulas[[#Headers],[SÁBADO]])*(ROUNDDOWN($B35,10)>=ROUNDDOWN(ListaAula[HORA DE INÍCIO],10))*($B35<=ListaAula[HORA DE TÉRMINO]),ListaAula[EXCLUSIVO]),ListaAula[EXCLUSIVO],0),2),0)","v":0}]
[null,"16:00:00",{"$f":"IFERROR(INDEX(ListaAula[],MATCH(SUMPRODUCT((ListaAula[DIA]=HorárioDasAulas[[#Headers],[DOMINGO]])*(ROUNDDOWN($B36,10)>=ROUNDDOWN(ListaAula[HORA DE INÍCIO],10))*($B36<=ListaAula[HORA DE TÉRMINO]),ListaAula[EXCLUSIVO]),ListaAula[EXCLUSIVO],0),2),0)","v":0},{"$f":"IFERROR(INDEX(ListaAula[],MATCH(SUMPRODUCT((ListaAula[DIA]=HorárioDasAulas[[#Headers],[SEGUNDA-FEIRA]])*(ROUNDDOWN($B36,10)>=ROUNDDOWN(ListaAula[HORA DE INÍCIO],10))*($B36<=ListaAula[HORA DE TÉRMINO]),ListaAula[EXCLUSIVO]),ListaAula[EXCLUSIVO],0),2),0)","v":"SP-111"},{"$f":"IFERROR(INDEX(ListaAula[],MATCH(SUMPRODUCT((ListaAula[DIA]=HorárioDasAulas[[#Headers],[TERÇA-FEIRA]])*(ROUNDDOWN($B36,10)>=ROUNDDOWN(ListaAula[HORA DE INÍCIO],10))*($B36<=ListaAula[HORA DE TÉRMINO]),ListaAula[EXCLUSIVO]),ListaAula[EXCLUSIVO],0),2),0)","v":0},{"$f":"IFERROR(INDEX(ListaAula[],MATCH(SUMPRODUCT((ListaAula[DIA]=HorárioDasAulas[[#Headers],[QUARTA-FEIRA]])*(ROUNDDOWN($B36,10)>=ROUNDDOWN(ListaAula[HORA DE INÍCIO],10))*($B36<=ListaAula[HORA DE TÉRMINO]),ListaAula[EXCLUSIVO]),ListaAula[EXCLUSIVO],0),2),0)","v":0},{"$f":"IFERROR(INDEX(ListaAula[],MATCH(SUMPRODUCT((ListaAula[DIA]=HorárioDasAulas[[#Headers],[QUINTA-FEIRA]])*(ROUNDDOWN($B36,10)>=ROUNDDOWN(ListaAula[HORA DE INÍCIO],10))*($B36<=ListaAula[HORA DE TÉRMINO]),ListaAula[EXCLUSIVO]),ListaAula[EXCLUSIVO],0),2),0)","v":0},{"$f":"IFERROR(INDEX(ListaAula[],MATCH(SUMPRODUCT((ListaAula[DIA]=HorárioDasAulas[[#Headers],[SEXTA-FEIRA]])*(ROUNDDOWN($B36,10)>=ROUNDDOWN(ListaAula[HORA DE INÍCIO],10))*($B36<=ListaAula[HORA DE TÉRMINO]),ListaAula[EXCLUSIVO]),ListaAula[EXCLUSIVO],0),2),0)","v":0},{"$f":"IFERROR(INDEX(ListaAula[],MATCH(SUMPRODUCT((ListaAula[DIA]=HorárioDasAulas[[#Headers],[SÁBADO]])*(ROUNDDOWN($B36,10)>=ROUNDDOWN(ListaAula[HORA DE INÍCIO],10))*($B36<=ListaAula[HORA DE TÉRMINO]),ListaAula[EXCLUSIVO]),ListaAula[EXCLUSIVO],0),2),0)","v":0}]
[null,{"$f":"B36+Incremento","v":"16:15:00"},{"$f":"IFERROR(INDEX(ListaAula[],MATCH(SUMPRODUCT((ListaAula[DIA]=HorárioDasAulas[[#Headers],[DOMINGO]])*(ROUNDDOWN($B37,10)>=ROUNDDOWN(ListaAula[HORA DE INÍCIO],10))*($B37<=ListaAula[HORA DE TÉRMINO]),ListaAula[EXCLUSIVO]),ListaAula[EXCLUSIVO],0),2),0)","v":0},{"$f":"IFERROR(INDEX(ListaAula[],MATCH(SUMPRODUCT((ListaAula[DIA]=HorárioDasAulas[[#Headers],[SEGUNDA-FEIRA]])*(ROUNDDOWN($B37,10)>=ROUNDDOWN(ListaAula[HORA DE INÍCIO],10))*($B37<=ListaAula[HORA DE TÉRMINO]),ListaAula[EXCLUSIVO]),ListaAula[EXCLUSIVO],0),2),0)","v":"SP-111"},{"$f":"IFERROR(INDEX(ListaAula[],MATCH(SUMPRODUCT((ListaAula[DIA]=HorárioDasAulas[[#Headers],[TERÇA-FEIRA]])*(ROUNDDOWN($B37,10)>=ROUNDDOWN(ListaAula[HORA DE INÍCIO],10))*($B37<=ListaAula[HORA DE TÉRMINO]),ListaAula[EXCLUSIVO]),ListaAula[EXCLUSIVO],0),2),0)","v":0},{"$f":"IFERROR(INDEX(ListaAula[],MATCH(SUMPRODUCT((ListaAula[DIA]=HorárioDasAulas[[#Headers],[QUARTA-FEIRA]])*(ROUNDDOWN($B37,10)>=ROUNDDOWN(ListaAula[HORA DE INÍCIO],10))*($B37<=ListaAula[HORA DE TÉRMINO]),ListaAula[EXCLUSIVO]),ListaAula[EXCLUSIVO],0),2),0)","v":0},{"$f":"IFERROR(INDEX(ListaAula[],MATCH(SUMPRODUCT((ListaAula[DIA]=HorárioDasAulas[[#Headers],[QUINTA-FEIRA]])*(ROUNDDOWN($B37,10)>=ROUNDDOWN(ListaAula[HORA DE INÍCIO],10))*($B37<=ListaAula[HORA DE TÉRMINO]),ListaAula[EXCLUSIVO]),ListaAula[EXCLUSIVO],0),2),0)","v":0},{"$f":"IFERROR(INDEX(ListaAula[],MATCH(SUMPRODUCT((ListaAula[DIA]=HorárioDasAulas[[#Headers],[SEXTA-FEIRA]])*(ROUNDDOWN($B37,10)>=ROUNDDOWN(ListaAula[HORA DE INÍCIO],10))*($B37<=ListaAula[HORA DE TÉRMINO]),ListaAula[EXCLUSIVO]),ListaAula[EXCLUSIVO],0),2),0)","v":0},{"$f":"IFERROR(INDEX(ListaAula[],MATCH(SUMPRODUCT((ListaAula[DIA]=HorárioDasAulas[[#Headers],[SÁBADO]])*(ROUNDDOWN($B37,10)>=ROUNDDOWN(ListaAula[HORA DE INÍCIO],10))*($B37<=ListaAula[HORA DE TÉRMINO]),ListaAula[EXCLUSIVO]),ListaAula[EXCLUSIVO],0),2),0)","v":0}]
[null,"16:30:00",{"$f":"IFERROR(INDEX(ListaAula[],MATCH(SUMPRODUCT((ListaAula[DIA]=HorárioDasAulas[[#Headers],[DOMINGO]])*(ROUNDDOWN($B38,10)>=ROUNDDOWN(ListaAula[HORA DE INÍCIO],10))*($B38<=ListaAula[HORA DE TÉRMINO]),ListaAula[EXCLUSIVO]),ListaAula[EXCLUSIVO],0),2),0)","v":0},{"$f":"IFERROR(INDEX(ListaAula[],MATCH(SUMPRODUCT((ListaAula[DIA]=HorárioDasAulas[[#Headers],[SEGUNDA-FEIRA]])*(ROUNDDOWN($B38,10)>=ROUNDDOWN(ListaAula[HORA DE INÍCIO],10))*($B38<=ListaAula[HORA DE TÉRMINO]),ListaAula[EXCLUSIVO]),ListaAula[EXCLUSIVO],0),2),0)","v":"SP-111"},{"$f":"IFERROR(INDEX(ListaAula[],MATCH(SUMPRODUCT((ListaAula[DIA]=HorárioDasAulas[[#Headers],[TERÇA-FEIRA]])*(ROUNDDOWN($B38,10)>=ROUNDDOWN(ListaAula[HORA DE INÍCIO],10))*($B38<=ListaAula[HORA DE TÉRMINO]),ListaAula[EXCLUSIVO]),ListaAula[EXCLUSIVO],0),2),0)","v":0},{"$f":"IFERROR(INDEX(ListaAula[],MATCH(SUMPRODUCT((ListaAula[DIA]=HorárioDasAulas[[#Headers],[QUARTA-FEIRA]])*(ROUNDDOWN($B38,10)>=ROUNDDOWN(ListaAula[HORA DE INÍCIO],10))*($B38<=ListaAula[HORA DE TÉRMINO]),ListaAula[EXCLUSIVO]),ListaAula[EXCLUSIVO],0),2),0)","v":0},{"$f":"IFERROR(INDEX(ListaAula[],MATCH(SUMPRODUCT((ListaAula[DIA]=HorárioDasAulas[[#Headers],[QUINTA-FEIRA]])*(ROUNDDOWN($B38,10)>=ROUNDDOWN(ListaAula[HORA DE INÍCIO],10))*($B38<=ListaAula[HORA DE TÉRMINO]),ListaAula[EXCLUSIVO]),ListaAula[EXCLUSIVO],0),2),0)","v":0},{"$f":"IFERROR(INDEX(ListaAula[],MATCH(SUMPRODUCT((ListaAula[DIA]=HorárioDasAulas[[#Headers],[SEXTA-FEIRA]])*(ROUNDDOWN($B38,10)>=ROUNDDOWN(ListaAula[HORA DE INÍCIO],10))*($B38<=ListaAula[HORA DE TÉRMINO]),ListaAula[EXCLUSIVO]),ListaAula[EXCLUSIVO],0),2),0)","v":0},{"$f":"IFERROR(INDEX(ListaAula[],MATCH(SUMPRODUCT((ListaAula[DIA]=HorárioDasAulas[[#Headers],[SÁBADO]])*(ROUNDDOWN($B38,10)>=ROUNDDOWN(ListaAula[HORA DE INÍCIO],10))*($B38<=ListaAula[HORA DE TÉRMINO]),ListaAula[EXCLUSIVO]),ListaAula[EXCLUSIVO],0),2),0)","v":0}]
[null,"16:45:00",{"$f":"IFERROR(INDEX(ListaAula[],MATCH(SUMPRODUCT((ListaAula[DIA]=HorárioDasAulas[[#Headers],[DOMINGO]])*(ROUNDDOWN($B39,10)>=ROUNDDOWN(ListaAula[HORA DE INÍCIO],10))*($B39<=ListaAula[HORA DE TÉRMINO]),ListaAula[EXCLUSIVO]),ListaAula[EXCLUSIVO],0),2),0)","v":0},{"$f":"IFERROR(INDEX(ListaAula[],MATCH(SUMPRODUCT((ListaAula[DIA]=HorárioDasAulas[[#Headers],[SEGUNDA-FEIRA]])*(ROUNDDOWN($B39,10)>=ROUNDDOWN(ListaAula[HORA DE INÍCIO],10))*($B39<=ListaAula[HORA DE TÉRMINO]),ListaAula[EXCLUSIVO]),ListaAula[EXCLUSIVO],0),2),0)","v":"SP-111"},{"$f":"IFERROR(INDEX(ListaAula[],MATCH(SUMPRODUCT((ListaAula[DIA]=HorárioDasAulas[[#Headers],[TERÇA-FEIRA]])*(ROUNDDOWN($B39,10)>=ROUNDDOWN(ListaAula[HORA DE INÍCIO],10))*($B39<=ListaAula[HORA DE TÉRMINO]),ListaAula[EXCLUSIVO]),ListaAula[EXCLUSIVO],0),2),0)","v":0},{"$f":"IFERROR(INDEX(ListaAula[],MATCH(SUMPRODUCT((ListaAula[DIA]=HorárioDasAulas[[#Headers],[QUARTA-FEIRA]])*(ROUNDDOWN($B39,10)>=ROUNDDOWN(ListaAula[HORA DE INÍCIO],10))*($B39<=ListaAula[HORA DE TÉRMINO]),ListaAula[EXCLUSIVO]),ListaAula[EXCLUSIVO],0),2),0)","v":0},{"$f":"IFERROR(INDEX(ListaAula[],MATCH(SUMPRODUCT((ListaAula[DIA]=HorárioDasAulas[[#Headers],[QUINTA-FEIRA]])*(ROUNDDOWN($B39,10)>=ROUNDDOWN(ListaAula[HORA DE INÍCIO],10))*($B39<=ListaAula[HORA DE TÉRMINO]),ListaAula[EXCLUSIVO]),ListaAula[EXCLUSIVO],0),2),0)","v":0},{"$f":"IFERROR(INDEX(ListaAula[],MATCH(SUMPRODUCT((ListaAula[DIA]=HorárioDasAulas[[#Headers],[SEXTA-FEIRA]])*(ROUNDDOWN($B39,10)>=ROUNDDOWN(ListaAula[HORA DE INÍCIO],10))*($B39<=ListaAula[HORA DE TÉRMINO]),ListaAula[EXCLUSIVO]),ListaAula[EXCLUSIVO],0),2),0)","v":0},{"$f":"IFERROR(INDEX(ListaAula[],MATCH(SUMPRODUCT((ListaAula[DIA]=HorárioDasAulas[[#Headers],[SÁBADO]])*(ROUNDDOWN($B39,10)>=ROUNDDOWN(ListaAula[HORA DE INÍCIO],10))*($B39<=ListaAula[HORA DE TÉRMINO]),ListaAula[EXCLUSIVO]),ListaAula[EXCLUSIVO],0),2),0)","v":0}]
[null,"17:00:00",{"$f":"IFERROR(INDEX(ListaAula[],MATCH(SUMPRODUCT((ListaAula[DIA]=HorárioDasAulas[[#Headers],[DOMINGO]])*(ROUNDDOWN($B40,10)>=ROUNDDOWN(ListaAula[HORA DE INÍCIO],10))*($B40<=ListaAula[HORA DE TÉRMINO]),ListaAula[EXCLUSIVO]),ListaAula[EXCLUSIVO],0),2),0)","v":0},{"$f":"IFERROR(INDEX(ListaAula[],MATCH(SUMPRODUCT((ListaAula[DIA]=HorárioDasAulas[[#Headers],[SEGUNDA-FEIRA]])*(ROUNDDOWN($B40,10)>=ROUNDDOWN(ListaAula[HORA DE INÍCIO],10))*($B40<=ListaAula[HORA DE TÉRMINO]),ListaAula[EXCLUSIVO]),ListaAula[EXCLUSIVO],0),2),0)","v":"SP-111"},{"$f":"IFERROR(INDEX(ListaAula[],MATCH(SUMPRODUCT((ListaAula[DIA]=HorárioDasAulas[[#Headers],[TERÇA-FEIRA]])*(ROUNDDOWN($B40,10)>=ROUNDDOWN(ListaAula[HORA DE INÍCIO],10))*($B40<=ListaAula[HORA DE TÉRMINO]),ListaAula[EXCLUSIVO]),ListaAula[EXCLUSIVO],0),2),0)","v":0},{"$f":"IFERROR(INDEX(ListaAula[],MATCH(SUMPRODUCT((ListaAula[DIA]=HorárioDasAulas[[#Headers],[QUARTA-FEIRA]])*(ROUNDDOWN($B40,10)>=ROUNDDOWN(ListaAula[HORA DE INÍCIO],10))*($B40<=ListaAula[HORA DE TÉRMINO]),ListaAula[EXCLUSIVO]),ListaAula[EXCLUSIVO],0),2),0)","v":0},{"$f":"IFERROR(INDEX(ListaAula[],MATCH(SUMPRODUCT((ListaAula[DIA]=HorárioDasAulas[[#Headers],[QUINTA-FEIRA]])*(ROUNDDOWN($B40,10)>=ROUNDDOWN(ListaAula[HORA DE INÍCIO],10))*($B40<=ListaAula[HORA DE TÉRMINO]),ListaAula[EXCLUSIVO]),ListaAula[EXCLUSIVO],0),2),0)","v":0},{"$f":"IFERROR(INDEX(ListaAula[],MATCH(SUMPRODUCT((ListaAula[DIA]=HorárioDasAulas[[#Headers],[SEXTA-FEIRA]])*(ROUNDDOWN($B40,10)>=ROUNDDOWN(ListaAula[HORA DE INÍCIO],10))*($B40<=ListaAula[HORA DE TÉRMINO]),ListaAula[EXCLUSIVO]),ListaAula[EXCLUSIVO],0),2),0)","v":0},{"$f":"IFERROR(INDEX(ListaAula[],MATCH(SUMPRODUCT((ListaAula[DIA]=HorárioDasAulas[[#Headers],[SÁBADO]])*(ROUNDDOWN($B40,10)>=ROUNDDOWN(ListaAula[HORA DE INÍCIO],10))*($B40<=ListaAula[HORA DE TÉRMINO]),ListaAula[EXCLUSIVO]),ListaAula[EXCLUSIVO],0),2),0)","v":0}]
[null,"17:15:00",{"$f":"IFERROR(INDEX(ListaAula[],MATCH(SUMPRODUCT((ListaAula[DIA]=HorárioDasAulas[[#Headers],[DOMINGO]])*(ROUNDDOWN($B41,10)>=ROUNDDOWN(ListaAula[HORA DE INÍCIO],10))*($B41<=ListaAula[HORA DE TÉRMINO]),ListaAula[EXCLUSIVO]),ListaAula[EXCLUSIVO],0),2),0)","v":0},{"$f":"IFERROR(INDEX(ListaAula[],MATCH(SUMPRODUCT((ListaAula[DIA]=HorárioDasAulas[[#Headers],[SEGUNDA-FEIRA]])*(ROUNDDOWN($B41,10)>=ROUNDDOWN(ListaAula[HORA DE INÍCIO],10))*($B41<=ListaAula[HORA DE TÉRMINO]),ListaAula[EXCLUSIVO]),ListaAula[EXCLUSIVO],0),2),0)","v":0},{"$f":"IFERROR(INDEX(ListaAula[],MATCH(SUMPRODUCT((ListaAula[DIA]=HorárioDasAulas[[#Headers],[TERÇA-FEIRA]])*(ROUNDDOWN($B41,10)>=ROUNDDOWN(ListaAula[HORA DE INÍCIO],10))*($B41<=ListaAula[HORA DE TÉRMINO]),ListaAula[EXCLUSIVO]),ListaAula[EXCLUSIVO],0),2),0)","v":0},{"$f":"IFERROR(INDEX(ListaAula[],MATCH(SUMPRODUCT((ListaAula[DIA]=HorárioDasAulas[[#Headers],[QUARTA-FEIRA]])*(ROUNDDOWN($B41,10)>=ROUNDDOWN(ListaAula[HORA DE INÍCIO],10))*($B41<=ListaAula[HORA DE TÉRMINO]),ListaAula[EXCLUSIVO]),ListaAula[EXCLUSIVO],0),2),0)","v":0},{"$f":"IFERROR(INDEX(ListaAula[],MATCH(SUMPRODUCT((ListaAula[DIA]=HorárioDasAulas[[#Headers],[QUINTA-FEIRA]])*(ROUNDDOWN($B41,10)>=ROUNDDOWN(ListaAula[HORA DE INÍCIO],10))*($B41<=ListaAula[HORA DE TÉRMINO]),ListaAula[EXCLUSIVO]),ListaAula[EXCLUSIVO],0),2),0)","v":0},{"$f":"IFERROR(INDEX(ListaAula[],MATCH(SUMPRODUCT((ListaAula[DIA]=HorárioDasAulas[[#Headers],[SEXTA-FEIRA]])*(ROUNDDOWN($B41,10)>=ROUNDDOWN(ListaAula[HORA DE INÍCIO],10))*($B41<=ListaAula[HORA DE TÉRMINO]),ListaAula[EXCLUSIVO]),ListaAula[EXCLUSIVO],0),2),0)","v":0},{"$f":"IFERROR(INDEX(ListaAula[],MATCH(SUMPRODUCT((ListaAula[DIA]=HorárioDasAulas[[#Headers],[SÁBADO]])*(ROUNDDOWN($B41,10)>=ROUNDDOWN(ListaAula[HORA DE INÍCIO],10))*($B41<=ListaAula[HORA DE TÉRMINO]),ListaAula[EXCLUSIVO]),ListaAula[EXCLUSIVO],0),2),0)","v":0}]
[null,"17:30:00",{"$f":"IFERROR(INDEX(ListaAula[],MATCH(SUMPRODUCT((ListaAula[DIA]=HorárioDasAulas[[#Headers],[DOMINGO]])*(ROUNDDOWN($B42,10)>=ROUNDDOWN(ListaAula[HORA DE INÍCIO],10))*($B42<=ListaAula[HORA DE TÉRMINO]),ListaAula[EXCLUSIVO]),ListaAula[EXCLUSIVO],0),2),0)","v":0},{"$f":"IFERROR(INDEX(ListaAula[],MATCH(SUMPRODUCT((ListaAula[DIA]=HorárioDasAulas[[#Headers],[SEGUNDA-FEIRA]])*(ROUNDDOWN($B42,10)>=ROUNDDOWN(ListaAula[HORA DE INÍCIO],10))*($B42<=ListaAula[HORA DE TÉRMINO]),ListaAula[EXCLUSIVO]),ListaAula[EXCLUSIVO],0),2),0)","v":0},{"$f":"IFERROR(INDEX(ListaAula[],MATCH(SUMPRODUCT((ListaAula[DIA]=HorárioDasAulas[[#Headers],[TERÇA-FEIRA]])*(ROUNDDOWN($B42,10)>=ROUNDDOWN(ListaAula[HORA DE INÍCIO],10))*($B42<=ListaAula[HORA DE TÉRMINO]),ListaAula[EXCLUSIVO]),ListaAula[EXCLUSIVO],0),2),0)","v":0},{"$f":"IFERROR(INDEX(ListaAula[],MATCH(SUMPRODUCT((ListaAula[DIA]=HorárioDasAulas[[#Headers],[QUARTA-FEIRA]])*(ROUNDDOWN($B42,10)>=ROUNDDOWN(ListaAula[HORA DE INÍCIO],10))*($B42<=ListaAula[HORA DE TÉRMINO]),ListaAula[EXCLUSIVO]),ListaAula[EXCLUSIVO],0),2),0)","v":0},{"$f":"IFERROR(INDEX(ListaAula[],MATCH(SUMPRODUCT((ListaAula[DIA]=HorárioDasAulas[[#Headers],[QUINTA-FEIRA]])*(ROUNDDOWN($B42,10)>=ROUNDDOWN(ListaAula[HORA DE INÍCIO],10))*($B42<=ListaAula[HORA DE TÉRMINO]),ListaAula[EXCLUSIVO]),ListaAula[EXCLUSIVO],0),2),0)","v":0},{"$f":"IFERROR(INDEX(ListaAula[],MATCH(SUMPRODUCT((ListaAula[DIA]=HorárioDasAulas[[#Headers],[SEXTA-FEIRA]])*(ROUNDDOWN($B42,10)>=ROUNDDOWN(ListaAula[HORA DE INÍCIO],10))*($B42<=ListaAula[HORA DE TÉRMINO]),ListaAula[EXCLUSIVO]),ListaAula[EXCLUSIVO],0),2),0)","v":0},{"$f":"IFERROR(INDEX(ListaAula[],MATCH(SUMPRODUCT((ListaAula[DIA]=HorárioDasAulas[[#Headers],[SÁBADO]])*(ROUNDDOWN($B42,10)>=ROUNDDOWN(ListaAula[HORA DE INÍCIO],10))*($B42<=ListaAula[HORA DE TÉRMINO]),ListaAula[EXCLUSIVO]),ListaAula[EXCLUSIVO],0),2),0)","v":0}]
[null,"17:45:00",{"$f":"IFERROR(INDEX(ListaAula[],MATCH(SUMPRODUCT((ListaAula[DIA]=HorárioDasAulas[[#Headers],[DOMINGO]])*(ROUNDDOWN($B43,10)>=ROUNDDOWN(ListaAula[HORA DE INÍCIO],10))*($B43<=ListaAula[HORA DE TÉRMINO]),ListaAula[EXCLUSIVO]),ListaAula[EXCLUSIVO],0),2),0)","v":0},{"$f":"IFERROR(INDEX(ListaAula[],MATCH(SUMPRODUCT((ListaAula[DIA]=HorárioDasAulas[[#Headers],[SEGUNDA-FEIRA]])*(ROUNDDOWN($B43,10)>=ROUNDDOWN(ListaAula[HORA DE INÍCIO],10))*($B43<=ListaAula[HORA DE TÉRMINO]),ListaAula[EXCLUSIVO]),ListaAula[EXCLUSIVO],0),2),0)","v":0},{"$f":"IFERROR(INDEX(ListaAula[],MATCH(SUMPRODUCT((ListaAula[DIA]=HorárioDasAulas[[#Headers],[TERÇA-FEIRA]])*(ROUNDDOWN($B43,10)>=ROUNDDOWN(ListaAula[HORA DE INÍCIO],10))*($B43<=ListaAula[HORA DE TÉRMINO]),ListaAula[EXCLUSIVO]),ListaAula[EXCLUSIVO],0),2),0)","v":0},{"$f":"IFERROR(INDEX(ListaAula[],MATCH(SUMPRODUCT((ListaAula[DIA]=HorárioDasAulas[[#Headers],[QUARTA-FEIRA]])*(ROUNDDOWN($B43,10)>=ROUNDDOWN(ListaAula[HORA DE INÍCIO],10))*($B43<=ListaAula[HORA DE TÉRMINO]),ListaAula[EXCLUSIVO]),ListaAula[EXCLUSIVO],0),2),0)","v":0},{"$f":"IFERROR(INDEX(ListaAula[],MATCH(SUMPRODUCT((ListaAula[DIA]=HorárioDasAulas[[#Headers],[QUINTA-FEIRA]])*(ROUNDDOWN($B43,10)>=ROUNDDOWN(ListaAula[HORA DE INÍCIO],10))*($B43<=ListaAula[HORA DE TÉRMINO]),ListaAula[EXCLUSIVO]),ListaAula[EXCLUSIVO],0),2),0)","v":0},{"$f":"IFERROR(INDEX(ListaAula[],MATCH(SUMPRODUCT((ListaAula[DIA]=HorárioDasAulas[[#Headers],[SEXTA-FEIRA]])*(ROUNDDOWN($B43,10)>=ROUNDDOWN(ListaAula[HORA DE INÍCIO],10))*($B43<=ListaAula[HORA DE TÉRMINO]),ListaAula[EXCLUSIVO]),ListaAula[EXCLUSIVO],0),2),0)","v":0},{"$f":"IFERROR(INDEX(ListaAula[],MATCH(SUMPRODUCT((ListaAula[DIA]=HorárioDasAulas[[#Headers],[SÁBADO]])*(ROUNDDOWN($B43,10)>=ROUNDDOWN(ListaAula[HORA DE INÍCIO],10))*($B43<=ListaAula[HORA DE TÉRMINO]),ListaAula[EXCLUSIVO]),ListaAula[EXCLUSIVO],0),2),0)","v":0}]
[null,"18:00:00",{"$f":"IFERROR(INDEX(ListaAula[],MATCH(SUMPRODUCT((ListaAula[DIA]=HorárioDasAulas[[#Headers],[DOMINGO]])*(ROUNDDOWN($B44,10)>=ROUNDDOWN(ListaAula[HORA DE INÍCIO],10))*($B44<=ListaAula[HORA DE TÉRMINO]),ListaAula[EXCLUSIVO]),ListaAula[EXCLUSIVO],0),2),0)","v":0},{"$f":"IFERROR(INDEX(ListaAula[],MATCH(SUMPRODUCT((ListaAula[DIA]=HorárioDasAulas[[#Headers],[SEGUNDA-FEIRA]])*(ROUNDDOWN($B44,10)>=ROUNDDOWN(ListaAula[HORA DE INÍCIO],10))*($B44<=ListaAula[HORA DE TÉRMINO]),ListaAula[EXCLUSIVO]),ListaAula[EXCLUSIVO],0),2),0)","v":0},{"$f":"IFERROR(INDEX(ListaAula[],MATCH(SUMPRODUCT((ListaAula[DIA]=HorárioDasAulas[[#Headers],[TERÇA-FEIRA]])*(ROUNDDOWN($B44,10)>=ROUNDDOWN(ListaAula[HORA DE INÍCIO],10))*($B44<=ListaAula[HORA DE TÉRMINO]),ListaAula[EXCLUSIVO]),ListaAula[EXCLUSIVO],0),2),0)","v":0},{"$f":"IFERROR(INDEX(ListaAula[],MATCH(SUMPRODUCT((ListaAula[DIA]=HorárioDasAulas[[#Headers],[QUARTA-FEIRA]])*(ROUNDDOWN($B44,10)>=ROUNDDOWN(ListaAula[HORA DE INÍCIO],10))*($B44<=ListaAula[HORA DE TÉRMINO]),ListaAula[EXCLUSIVO]),ListaAula[EXCLUSIVO],0),2),0)","v":0},{"$f":"IFERROR(INDEX(ListaAula[],MATCH(SUMPRODUCT((ListaAula[DIA]=HorárioDasAulas[[#Headers],[QUINTA-FEIRA]])*(ROUNDDOWN($B44,10)>=ROUNDDOWN(ListaAula[HORA DE INÍCIO],10))*($B44<=ListaAula[HORA DE TÉRMINO]),ListaAula[EXCLUSIVO]),ListaAula[EXCLUSIVO],0),2),0)","v":0},{"$f":"IFERROR(INDEX(ListaAula[],MATCH(SUMPRODUCT((ListaAula[DIA]=HorárioDasAulas[[#Headers],[SEXTA-FEIRA]])*(ROUNDDOWN($B44,10)>=ROUNDDOWN(ListaAula[HORA DE INÍCIO],10))*($B44<=ListaAula[HORA DE TÉRMINO]),ListaAula[EXCLUSIVO]),ListaAula[EXCLUSIVO],0),2),0)","v":0},{"$f":"IFERROR(INDEX(ListaAula[],MATCH(SUMPRODUCT((ListaAula[DIA]=HorárioDasAulas[[#Headers],[SÁBADO]])*(ROUNDDOWN($B44,10)>=ROUNDDOWN(ListaAula[HORA DE INÍCIO],10))*($B44<=ListaAula[HORA DE TÉRMINO]),ListaAula[EXCLUSIVO]),ListaAula[EXCLUSIVO],0),2),0)","v":0}]
[null,"18:15:00",{"$f":"IFERROR(INDEX(ListaAula[],MATCH(SUMPRODUCT((ListaAula[DIA]=HorárioDasAulas[[#Headers],[DOMINGO]])*(ROUNDDOWN($B45,10)>=ROUNDDOWN(ListaAula[HORA DE INÍCIO],10))*($B45<=ListaAula[HORA DE TÉRMINO]),ListaAula[EXCLUSIVO]),ListaAula[EXCLUSIVO],0),2),0)","v":0},{"$f":"IFERROR(INDEX(ListaAula[],MATCH(SUMPRODUCT((ListaAula[DIA]=HorárioDasAulas[[#Headers],[SEGUNDA-FEIRA]])*(ROUNDDOWN($B45,10)>=ROUNDDOWN(ListaAula[HORA DE INÍCIO],10))*($B45<=ListaAula[HORA DE TÉRMINO]),ListaAula[EXCLUSIVO]),ListaAula[EXCLUSIVO],0),2),0)","v":0},{"$f":"IFERROR(INDEX(ListaAula[],MATCH(SUMPRODUCT((ListaAula[DIA]=HorárioDasAulas[[#Headers],[TERÇA-FEIRA]])*(ROUNDDOWN($B45,10)>=ROUNDDOWN(ListaAula[HORA DE INÍCIO],10))*($B45<=ListaAula[HORA DE TÉRMINO]),ListaAula[EXCLUSIVO]),ListaAula[EXCLUSIVO],0),2),0)","v":0},{"$f":"IFERROR(INDEX(ListaAula[],MATCH(SUMPRODUCT((ListaAula[DIA]=HorárioDasAulas[[#Headers],[QUARTA-FEIRA]])*(ROUNDDOWN($B45,10)>=ROUNDDOWN(ListaAula[HORA DE INÍCIO],10))*($B45<=ListaAula[HORA DE TÉRMINO]),ListaAula[EXCLUSIVO]),ListaAula[EXCLUSIVO],0),2),0)","v":0},{"$f":"IFERROR(INDEX(ListaAula[],MATCH(SUMPRODUCT((ListaAula[DIA]=HorárioDasAulas[[#Headers],[QUINTA-FEIRA]])*(ROUNDDOWN($B45,10)>=ROUNDDOWN(ListaAula[HORA DE INÍCIO],10))*($B45<=ListaAula[HORA DE TÉRMINO]),ListaAula[EXCLUSIVO]),ListaAula[EXCLUSIVO],0),2),0)","v":0},{"$f":"IFERROR(INDEX(ListaAula[],MATCH(SUMPRODUCT((ListaAula[DIA]=HorárioDasAulas[[#Headers],[SEXTA-FEIRA]])*(ROUNDDOWN($B45,10)>=ROUNDDOWN(ListaAula[HORA DE INÍCIO],10))*($B45<=ListaAula[HORA DE TÉRMINO]),ListaAula[EXCLUSIVO]),ListaAula[EXCLUSIVO],0),2),0)","v":0},{"$f":"IFERROR(INDEX(ListaAula[],MATCH(SUMPRODUCT((ListaAula[DIA]=HorárioDasAulas[[#Headers],[SÁBADO]])*(ROUNDDOWN($B45,10)>=ROUNDDOWN(ListaAula[HORA DE INÍCIO],10))*($B45<=ListaAula[HORA DE TÉRMINO]),ListaAula[EXCLUSIVO]),ListaAula[EXCLUSIVO],0),2),0)","v":0}]
[null,"18:30:00",{"$f":"IFERROR(INDEX(ListaAula[],MATCH(SUMPRODUCT((ListaAula[DIA]=HorárioDasAulas[[#Headers],[DOMINGO]])*(ROUNDDOWN($B46,10)>=ROUNDDOWN(ListaAula[HORA DE INÍCIO],10))*($B46<=ListaAula[HORA DE TÉRMINO]),ListaAula[EXCLUSIVO]),ListaAula[EXCLUSIVO],0),2),0)","v":0},{"$f":"IFERROR(INDEX(ListaAula[],MATCH(SUMPRODUCT((ListaAula[DIA]=HorárioDasAulas[[#Headers],[SEGUNDA-FEIRA]])*(ROUNDDOWN($B46,10)>=ROUNDDOWN(ListaAula[HORA DE INÍCIO],10))*($B46<=ListaAula[HORA DE TÉRMINO]),ListaAula[EXCLUSIVO]),ListaAula[EXCLUSIVO],0),2),0)","v":0},{"$f":"IFERROR(INDEX(ListaAula[],MATCH(SUMPRODUCT((ListaAula[DIA]=HorárioDasAulas[[#Headers],[TERÇA-FEIRA]])*(ROUNDDOWN($B46,10)>=ROUNDDOWN(ListaAula[HORA DE INÍCIO],10))*($B46<=ListaAula[HORA DE TÉRMINO]),ListaAula[EXCLUSIVO]),ListaAula[EXCLUSIVO],0),2),0)","v":0},{"$f":"IFERROR(INDEX(ListaAula[],MATCH(SUMPRODUCT((ListaAula[DIA]=HorárioDasAulas[[#Headers],[QUARTA-FEIRA]])*(ROUNDDOWN($B46,10)>=ROUNDDOWN(ListaAula[HORA DE INÍCIO],10))*($B46<=ListaAula[HORA DE TÉRMINO]),ListaAula[EXCLUSIVO]),ListaAula[EXCLUSIVO],0),2),0)","v":0},{"$f":"IFERROR(INDEX(ListaAula[],MATCH(SUMPRODUCT((ListaAula[DIA]=HorárioDasAulas[[#Headers],[QUINTA-FEIRA]])*(ROUNDDOWN($B46,10)>=ROUNDDOWN(ListaAula[HORA DE INÍCIO],10))*($B46<=ListaAula[HORA DE TÉRMINO]),ListaAula[EXCLUSIVO]),ListaAula[EXCLUSIVO],0),2),0)","v":0},{"$f":"IFERROR(INDEX(ListaAula[],MATCH(SUMPRODUCT((ListaAula[DIA]=HorárioDasAulas[[#Headers],[SEXTA-FEIRA]])*(ROUNDDOWN($B46,10)>=ROUNDDOWN(ListaAula[HORA DE INÍCIO],10))*($B46<=ListaAula[HORA DE TÉRMINO]),ListaAula[EXCLUSIVO]),ListaAula[EXCLUSIVO],0),2),0)","v":0},{"$f":"IFERROR(INDEX(ListaAula[],MATCH(SUMPRODUCT((ListaAula[DIA]=HorárioDasAulas[[#Headers],[SÁBADO]])*(ROUNDDOWN($B46,10)>=ROUNDDOWN(ListaAula[HORA DE INÍCIO],10))*($B46<=ListaAula[HORA DE TÉRMINO]),ListaAula[EXCLUSIVO]),ListaAula[EXCLUSIVO],0),2),0)","v":0}]
[null,"18:45:00",{"$f":"IFERROR(INDEX(ListaAula[],MATCH(SUMPRODUCT((ListaAula[DIA]=HorárioDasAulas[[#Headers],[DOMINGO]])*(ROUNDDOWN($B47,10)>=ROUNDDOWN(ListaAula[HORA DE INÍCIO],10))*($B47<=ListaAula[HORA DE TÉRMINO]),ListaAula[EXCLUSIVO]),ListaAula[EXCLUSIVO],0),2),0)","v":0},{"$f":"IFERROR(INDEX(ListaAula[],MATCH(SUMPRODUCT((ListaAula[DIA]=HorárioDasAulas[[#Headers],[SEGUNDA-FEIRA]])*(ROUNDDOWN($B47,10)>=ROUNDDOWN(ListaAula[HORA DE INÍCIO],10))*($B47<=ListaAula[HORA DE TÉRMINO]),ListaAula[EXCLUSIVO]),ListaAula[EXCLUSIVO],0),2),0)","v":0},{"$f":"IFERROR(INDEX(ListaAula[],MATCH(SUMPRODUCT((ListaAula[DIA]=HorárioDasAulas[[#Headers],[TERÇA-FEIRA]])*(ROUNDDOWN($B47,10)>=ROUNDDOWN(ListaAula[HORA DE INÍCIO],10))*($B47<=ListaAula[HORA DE TÉRMINO]),ListaAula[EXCLUSIVO]),ListaAula[EXCLUSIVO],0),2),0)","v":0},{"$f":"IFERROR(INDEX(ListaAula[],MATCH(SUMPRODUCT((ListaAula[DIA]=HorárioDasAulas[[#Headers],[QUARTA-FEIRA]])*(ROUNDDOWN($B47,10)>=ROUNDDOWN(ListaAula[HORA DE INÍCIO],10))*($B47<=ListaAula[HORA DE TÉRMINO]),ListaAula[EXCLUSIVO]),ListaAula[EXCLUSIVO],0),2),0)","v":0},{"$f":"IFERROR(INDEX(ListaAula[],MATCH(SUMPRODUCT((ListaAula[DIA]=HorárioDasAulas[[#Headers],[QUINTA-FEIRA]])*(ROUNDDOWN($B47,10)>=ROUNDDOWN(ListaAula[HORA DE INÍCIO],10))*($B47<=ListaAula[HORA DE TÉRMINO]),ListaAula[EXCLUSIVO]),ListaAula[EXCLUSIVO],0),2),0)","v":0},{"$f":"IFERROR(INDEX(ListaAula[],MATCH(SUMPRODUCT((ListaAula[DIA]=HorárioDasAulas[[#Headers],[SEXTA-FEIRA]])*(ROUNDDOWN($B47,10)>=ROUNDDOWN(ListaAula[HORA DE INÍCIO],10))*($B47<=ListaAula[HORA DE TÉRMINO]),ListaAula[EXCLUSIVO]),ListaAula[EXCLUSIVO],0),2),0)","v":0},{"$f":"IFERROR(INDEX(ListaAula[],MATCH(SUMPRODUCT((ListaAula[DIA]=HorárioDasAulas[[#Headers],[SÁBADO]])*(ROUNDDOWN($B47,10)>=ROUNDDOWN(ListaAula[HORA DE INÍCIO],10))*($B47<=ListaAula[HORA DE TÉRMINO]),ListaAula[EXCLUSIVO]),ListaAula[EXCLUSIVO],0),2),0)","v":0}]
[null,"19:00:00",{"$f":"IFERROR(INDEX(ListaAula[],MATCH(SUMPRODUCT((ListaAula[DIA]=HorárioDasAulas[[#Headers],[DOMINGO]])*(ROUNDDOWN($B48,10)>=ROUNDDOWN(ListaAula[HORA DE INÍCIO],10))*($B48<=ListaAula[HORA DE TÉRMINO]),ListaAula[EXCLUSIVO]),ListaAula[EXCLUSIVO],0),2),0)","v":0},{"$f":"IFERROR(INDEX(ListaAula[],MATCH(SUMPRODUCT((ListaAula[DIA]=HorárioDasAulas[[#Headers],[SEGUNDA-FEIRA]])*(ROUNDDOWN($B48,10)>=ROUNDDOWN(ListaAula[HORA DE INÍCIO],10))*($B48<=ListaAula[HORA DE TÉRMINO]),ListaAula[EXCLUSIVO]),ListaAula[EXCLUSIVO],0),2),0)","v":0},{"$f":"IFERROR(INDEX(ListaAula[],MATCH(SUMPRODUCT((ListaAula[DIA]=HorárioDasAulas[[#Headers],[TERÇA-FEIRA]])*(ROUNDDOWN($B48,10)>=ROUNDDOWN(ListaAula[HORA DE INÍCIO],10))*($B48<=ListaAula[HORA DE TÉRMINO]),ListaAula[EXCLUSIVO]),ListaAula[EXCLUSIVO],0),2),0)","v":0},{"$f":"IFERROR(INDEX(ListaAula[],MATCH(SUMPRODUCT((ListaAula[DIA]=HorárioDasAulas[[#Headers],[QUARTA-FEIRA]])*(ROUNDDOWN($B48,10)>=ROUNDDOWN(ListaAula[HORA DE INÍCIO],10))*($B48<=ListaAula[HORA DE TÉRMINO]),ListaAula[EXCLUSIVO]),ListaAula[EXCLUSIVO],0),2),0)","v":0},{"$f":"IFERROR(INDEX(ListaAula[],MATCH(SUMPRODUCT((ListaAula[DIA]=HorárioDasAulas[[#Headers],[QUINTA-FEIRA]])*(ROUNDDOWN($B48,10)>=ROUNDDOWN(ListaAula[HORA DE INÍCIO],10))*($B48<=ListaAula[HORA DE TÉRMINO]),ListaAula[EXCLUSIVO]),ListaAula[EXCLUSIVO],0),2),0)","v":0},{"$f":"IFERROR(INDEX(ListaAula[],MATCH(SUMPRODUCT((ListaAula[DIA]=HorárioDasAulas[[#Headers],[SEXTA-FEIRA]])*(ROUNDDOWN($B48,10)>=ROUNDDOWN(ListaAula[HORA DE INÍCIO],10))*($B48<=ListaAula[HORA DE TÉRMINO]),ListaAula[EXCLUSIVO]),ListaAula[EXCLUSIVO],0),2),0)","v":0},{"$f":"IFERROR(INDEX(ListaAula[],MATCH(SUMPRODUCT((ListaAula[DIA]=HorárioDasAulas[[#Headers],[SÁBADO]])*(ROUNDDOWN($B48,10)>=ROUNDDOWN(ListaAula[HORA DE INÍCIO],10))*($B48<=ListaAula[HORA DE TÉRMINO]),ListaAula[EXCLUSIVO]),ListaAula[EXCLUSIVO],0),2),0)","v":0}]
[null,"19:15:00",{"$f":"IFERROR(INDEX(ListaAula[],MATCH(SUMPRODUCT((ListaAula[DIA]=HorárioDasAulas[[#Headers],[DOMINGO]])*(ROUNDDOWN($B49,10)>=ROUNDDOWN(ListaAula[HORA DE INÍCIO],10))*($B49<=ListaAula[HORA DE TÉRMINO]),ListaAula[EXCLUSIVO]),ListaAula[EXCLUSIVO],0),2),0)","v":0},{"$f":"IFERROR(INDEX(ListaAula[],MATCH(SUMPRODUCT((ListaAula[DIA]=HorárioDasAulas[[#Headers],[SEGUNDA-FEIRA]])*(ROUNDDOWN($B49,10)>=ROUNDDOWN(ListaAula[HORA DE INÍCIO],10))*($B49<=ListaAula[HORA DE TÉRMINO]),ListaAula[EXCLUSIVO]),ListaAula[EXCLUSIVO],0),2),0)","v":0},{"$f":"IFERROR(INDEX(ListaAula[],MATCH(SUMPRODUCT((ListaAula[DIA]=HorárioDasAulas[[#Headers],[TERÇA-FEIRA]])*(ROUNDDOWN($B49,10)>=ROUNDDOWN(ListaAula[HORA DE INÍCIO],10))*($B49<=ListaAula[HORA DE TÉRMINO]),ListaAula[EXCLUSIVO]),ListaAula[EXCLUSIVO],0),2),0)","v":0},{"$f":"IFERROR(INDEX(ListaAula[],MATCH(SUMPRODUCT((ListaAula[DIA]=HorárioDasAulas[[#Headers],[QUARTA-FEIRA]])*(ROUNDDOWN($B49,10)>=ROUNDDOWN(ListaAula[HORA DE INÍCIO],10))*($B49<=ListaAula[HORA DE TÉRMINO]),ListaAula[EXCLUSIVO]),ListaAula[EXCLUSIVO],0),2),0)","v":0},{"$f":"IFERROR(INDEX(ListaAula[],MATCH(SUMPRODUCT((ListaAula[DIA]=HorárioDasAulas[[#Headers],[QUINTA-FEIRA]])*(ROUNDDOWN($B49,10)>=ROUNDDOWN(ListaAula[HORA DE INÍCIO],10))*($B49<=ListaAula[HORA DE TÉRMINO]),ListaAula[EXCLUSIVO]),ListaAula[EXCLUSIVO],0),2),0)","v":0},{"$f":"IFERROR(INDEX(ListaAula[],MATCH(SUMPRODUCT((ListaAula[DIA]=HorárioDasAulas[[#Headers],[SEXTA-FEIRA]])*(ROUNDDOWN($B49,10)>=ROUNDDOWN(ListaAula[HORA DE INÍCIO],10))*($B49<=ListaAula[HORA DE TÉRMINO]),ListaAula[EXCLUSIVO]),ListaAula[EXCLUSIVO],0),2),0)","v":0},{"$f":"IFERROR(INDEX(ListaAula[],MATCH(SUMPRODUCT((ListaAula[DIA]=HorárioDasAulas[[#Headers],[SÁBADO]])*(ROUNDDOWN($B49,10)>=ROUNDDOWN(ListaAula[HORA DE INÍCIO],10))*($B49<=ListaAula[HORA DE TÉRMINO]),ListaAula[EXCLUSIVO]),ListaAula[EXCLUSIVO],0),2),0)","v":0}]
[null,"19:30:00",{"$f":"IFERROR(INDEX(ListaAula[],MATCH(SUMPRODUCT((ListaAula[DIA]=HorárioDasAulas[[#Headers],[DOMINGO]])*(ROUNDDOWN($B50,10)>=ROUNDDOWN(ListaAula[HORA DE INÍCIO],10))*($B50<=ListaAula[HORA DE TÉRMINO]),ListaAula[EXCLUSIVO]),ListaAula[EXCLUSIVO],0),2),0)","v":0},{"$f":"IFERROR(INDEX(ListaAula[],MATCH(SUMPRODUCT((ListaAula[DIA]=HorárioDasAulas[[#Headers],[SEGUNDA-FEIRA]])*(ROUNDDOWN($B50,10)>=ROUNDDOWN(ListaAula[HORA DE INÍCIO],10))*($B50<=ListaAula[HORA DE TÉRMINO]),ListaAula[EXCLUSIVO]),ListaAula[EXCLUSIVO],0),2),0)","v":0},{"$f":"IFERROR(INDEX(ListaAula[],MATCH(SUMPRODUCT((ListaAula[DIA]=HorárioDasAulas[[#Headers],[TERÇA-FEIRA]])*(ROUNDDOWN($B50,10)>=ROUNDDOWN(ListaAula[HORA DE INÍCIO],10))*($B50<=ListaAula[HORA DE TÉRMINO]),ListaAula[EXCLUSIVO]),ListaAula[EXCLUSIVO],0),2),0)","v":0},{"$f":"IFERROR(INDEX(ListaAula[],MATCH(SUMPRODUCT((ListaAula[DIA]=HorárioDasAulas[[#Headers],[QUARTA-FEIRA]])*(ROUNDDOWN($B50,10)>=ROUNDDOWN(ListaAula[HORA DE INÍCIO],10))*($B50<=ListaAula[HORA DE TÉRMINO]),ListaAula[EXCLUSIVO]),ListaAula[EXCLUSIVO],0),2),0)","v":0},{"$f":"IFERROR(INDEX(ListaAula[],MATCH(SUMPRODUCT((ListaAula[DIA]=HorárioDasAulas[[#Headers],[QUINTA-FEIRA]])*(ROUNDDOWN($B50,10)>=ROUNDDOWN(ListaAula[HORA DE INÍCIO],10))*($B50<=ListaAula[HORA DE TÉRMINO]),ListaAula[EXCLUSIVO]),ListaAula[EXCLUSIVO],0),2),0)","v":0},{"$f":"IFERROR(INDEX(ListaAula[],MATCH(SUMPRODUCT((ListaAula[DIA]=HorárioDasAulas[[#Headers],[SEXTA-FEIRA]])*(ROUNDDOWN($B50,10)>=ROUNDDOWN(ListaAula[HORA DE INÍCIO],10))*($B50<=ListaAula[HORA DE TÉRMINO]),ListaAula[EXCLUSIVO]),ListaAula[EXCLUSIVO],0),2),0)","v":0},{"$f":"IFERROR(INDEX(ListaAula[],MATCH(SUMPRODUCT((ListaAula[DIA]=HorárioDasAulas[[#Headers],[SÁBADO]])*(ROUNDDOWN($B50,10)>=ROUNDDOWN(ListaAula[HORA DE INÍCIO],10))*($B50<=ListaAula[HORA DE TÉRMINO]),ListaAula[EXCLUSIVO]),ListaAula[EXCLUSIVO],0),2),0)","v":0}]
[null,"19:45:00",{"$f":"IFERROR(INDEX(ListaAula[],MATCH(SUMPRODUCT((ListaAula[DIA]=HorárioDasAulas[[#Headers],[DOMINGO]])*(ROUNDDOWN($B51,10)>=ROUNDDOWN(ListaAula[HORA DE INÍCIO],10))*($B51<=ListaAula[HORA DE TÉRMINO]),ListaAula[EXCLUSIVO]),ListaAula[EXCLUSIVO],0),2),0)","v":0},{"$f":"IFERROR(INDEX(ListaAula[],MATCH(SUMPRODUCT((ListaAula[DIA]=HorárioDasAulas[[#Headers],[SEGUNDA-FEIRA]])*(ROUNDDOWN($B51,10)>=ROUNDDOWN(ListaAula[HORA DE INÍCIO],10))*($B51<=ListaAula[HORA DE TÉRMINO]),ListaAula[EXCLUSIVO]),ListaAula[EXCLUSIVO],0),2),0)","v":0},{"$f":"IFERROR(INDEX(ListaAula[],MATCH(SUMPRODUCT((ListaAula[DIA]=HorárioDasAulas[[#Headers],[TERÇA-FEIRA]])*(ROUNDDOWN($B51,10)>=ROUNDDOWN(ListaAula[HORA DE INÍCIO],10))*($B51<=ListaAula[HORA DE TÉRMINO]),ListaAula[EXCLUSIVO]),ListaAula[EXCLUSIVO],0),2),0)","v":0},{"$f":"IFERROR(INDEX(ListaAula[],MATCH(SUMPRODUCT((ListaAula[DIA]=HorárioDasAulas[[#Headers],[QUARTA-FEIRA]])*(ROUNDDOWN($B51,10)>=ROUNDDOWN(ListaAula[HORA DE INÍCIO],10))*($B51<=ListaAula[HORA DE TÉRMINO]),ListaAula[EXCLUSIVO]),ListaAula[EXCLUSIVO],0),2),0)","v":0},{"$f":"IFERROR(INDEX(ListaAula[],MATCH(SUMPRODUCT((ListaAula[DIA]=HorárioDasAulas[[#Headers],[QUINTA-FEIRA]])*(ROUNDDOWN($B51,10)>=ROUNDDOWN(ListaAula[HORA DE INÍCIO],10))*($B51<=ListaAula[HORA DE TÉRMINO]),ListaAula[EXCLUSIVO]),ListaAula[EXCLUSIVO],0),2),0)","v":0},{"$f":"IFERROR(INDEX(ListaAula[],MATCH(SUMPRODUCT((ListaAula[DIA]=HorárioDasAulas[[#Headers],[SEXTA-FEIRA]])*(ROUNDDOWN($B51,10)>=ROUNDDOWN(ListaAula[HORA DE INÍCIO],10))*($B51<=ListaAula[HORA DE TÉRMINO]),ListaAula[EXCLUSIVO]),ListaAula[EXCLUSIVO],0),2),0)","v":0},{"$f":"IFERROR(INDEX(ListaAula[],MATCH(SUMPRODUCT((ListaAula[DIA]=HorárioDasAulas[[#Headers],[SÁBADO]])*(ROUNDDOWN($B51,10)>=ROUNDDOWN(ListaAula[HORA DE INÍCIO],10))*($B51<=ListaAula[HORA DE TÉRMINO]),ListaAula[EXCLUSIVO]),ListaAula[EXCLUSIVO],0),2),0)","v":0}]
[null,"20:00:00",{"$f":"IFERROR(INDEX(ListaAula[],MATCH(SUMPRODUCT((ListaAula[DIA]=HorárioDasAulas[[#Headers],[DOMINGO]])*(ROUNDDOWN($B52,10)>=ROUNDDOWN(ListaAula[HORA DE INÍCIO],10))*($B52<=ListaAula[HORA DE TÉRMINO]),ListaAula[EXCLUSIVO]),ListaAula[EXCLUSIVO],0),2),0)","v":0},{"$f":"IFERROR(INDEX(ListaAula[],MATCH(SUMPRODUCT((ListaAula[DIA]=HorárioDasAulas[[#Headers],[SEGUNDA-FEIRA]])*(ROUNDDOWN($B52,10)>=ROUNDDOWN(ListaAula[HORA DE INÍCIO],10))*($B52<=ListaAula[HORA DE TÉRMINO]),ListaAula[EXCLUSIVO]),ListaAula[EXCLUSIVO],0),2),0)","v":0},{"$f":"IFERROR(INDEX(ListaAula[],MATCH(SUMPRODUCT((ListaAula[DIA]=HorárioDasAulas[[#Headers],[TERÇA-FEIRA]])*(ROUNDDOWN($B52,10)>=ROUNDDOWN(ListaAula[HORA DE INÍCIO],10))*($B52<=ListaAula[HORA DE TÉRMINO]),ListaAula[EXCLUSIVO]),ListaAula[EXCLUSIVO],0),2),0)","v":0},{"$f":"IFERROR(INDEX(ListaAula[],MATCH(SUMPRODUCT((ListaAula[DIA]=HorárioDasAulas[[#Headers],[QUARTA-FEIRA]])*(ROUNDDOWN($B52,10)>=ROUNDDOWN(ListaAula[HORA DE INÍCIO],10))*($B52<=ListaAula[HORA DE TÉRMINO]),ListaAula[EXCLUSIVO]),ListaAula[EXCLUSIVO],0),2),0)","v":0},{"$f":"IFERROR(INDEX(ListaAula[],MATCH(SUMPRODUCT((ListaAula[DIA]=HorárioDasAulas[[#Headers],[QUINTA-FEIRA]])*(ROUNDDOWN($B52,10)>=ROUNDDOWN(ListaAula[HORA DE INÍCIO],10))*($B52<=ListaAula[HORA DE TÉRMINO]),ListaAula[EXCLUSIVO]),ListaAula[EXCLUSIVO],0),2),0)","v":0},{"$f":"IFERROR(INDEX(ListaAula[],MATCH(SUMPRODUCT((ListaAula[DIA]=HorárioDasAulas[[#Headers],[SEXTA-FEIRA]])*(ROUNDDOWN($B52,10)>=ROUNDDOWN(ListaAula[HORA DE INÍCIO],10))*($B52<=ListaAula[HORA DE TÉRMINO]),ListaAula[EXCLUSIVO]),ListaAula[EXCLUSIVO],0),2),0)","v":0},{"$f":"IFERROR(INDEX(ListaAula[],MATCH(SUMPRODUCT((ListaAula[DIA]=HorárioDasAulas[[#Headers],[SÁBADO]])*(ROUNDDOWN($B52,10)>=ROUNDDOWN(ListaAula[HORA DE INÍCIO],10))*($B52<=ListaAula[HORA DE TÉRMINO]),ListaAula[EXCLUSIVO]),ListaAula[EXCLUSIVO],0),2),0)","v":0}]
[null,"20:15:00",{"$f":"IFERROR(INDEX(ListaAula[],MATCH(SUMPRODUCT((ListaAula[DIA]=HorárioDasAulas[[#Headers],[DOMINGO]])*(ROUNDDOWN($B53,10)>=ROUNDDOWN(ListaAula[HORA DE INÍCIO],10))*($B53<=ListaAula[HORA DE TÉRMINO]),ListaAula[EXCLUSIVO]),ListaAula[EXCLUSIVO],0),2),0)","v":0},{"$f":"IFERROR(INDEX(ListaAula[],MATCH(SUMPRODUCT((ListaAula[DIA]=HorárioDasAulas[[#Headers],[SEGUNDA-FEIRA]])*(ROUNDDOWN($B53,10)>=ROUNDDOWN(ListaAula[HORA DE INÍCIO],10))*($B53<=ListaAula[HORA DE TÉRMINO]),ListaAula[EXCLUSIVO]),ListaAula[EXCLUSIVO],0),2),0)","v":0},{"$f":"IFERROR(INDEX(ListaAula[],MATCH(SUMPRODUCT((ListaAula[DIA]=HorárioDasAulas[[#Headers],[TERÇA-FEIRA]])*(ROUNDDOWN($B53,10)>=ROUNDDOWN(ListaAula[HORA DE INÍCIO],10))*($B53<=ListaAula[HORA DE TÉRMINO]),ListaAula[EXCLUSIVO]),ListaAula[EXCLUSIVO],0),2),0)","v":0},{"$f":"IFERROR(INDEX(ListaAula[],MATCH(SUMPRODUCT((ListaAula[DIA]=HorárioDasAulas[[#Headers],[QUARTA-FEIRA]])*(ROUNDDOWN($B53,10)>=ROUNDDOWN(ListaAula[HORA DE INÍCIO],10))*($B53<=ListaAula[HORA DE TÉRMINO]),ListaAula[EXCLUSIVO]),ListaAula[EXCLUSIVO],0),2),0)","v":0},{"$f":"IFERROR(INDEX(ListaAula[],MATCH(SUMPRODUCT((ListaAula[DIA]=HorárioDasAulas[[#Headers],[QUINTA-FEIRA]])*(ROUNDDOWN($B53,10)>=ROUNDDOWN(ListaAula[HORA DE INÍCIO],10))*($B53<=ListaAula[HORA DE TÉRMINO]),ListaAula[EXCLUSIVO]),ListaAula[EXCLUSIVO],0),2),0)","v":0},{"$f":"IFERROR(INDEX(ListaAula[],MATCH(SUMPRODUCT((ListaAula[DIA]=HorárioDasAulas[[#Headers],[SEXTA-FEIRA]])*(ROUNDDOWN($B53,10)>=ROUNDDOWN(ListaAula[HORA DE INÍCIO],10))*($B53<=ListaAula[HORA DE TÉRMINO]),ListaAula[EXCLUSIVO]),ListaAula[EXCLUSIVO],0),2),0)","v":0},{"$f":"IFERROR(INDEX(ListaAula[],MATCH(SUMPRODUCT((ListaAula[DIA]=HorárioDasAulas[[#Headers],[SÁBADO]])*(ROUNDDOWN($B53,10)>=ROUNDDOWN(ListaAula[HORA DE INÍCIO],10))*($B53<=ListaAula[HORA DE TÉRMINO]),ListaAula[EXCLUSIVO]),ListaAula[EXCLUSIVO],0),2),0)","v":0}]
[null,"20:30:00",{"$f":"IFERROR(INDEX(ListaAula[],MATCH(SUMPRODUCT((ListaAula[DIA]=HorárioDasAulas[[#Headers],[DOMINGO]])*(ROUNDDOWN($B54,10)>=ROUNDDOWN(ListaAula[HORA DE INÍCIO],10))*($B54<=ListaAula[HORA DE TÉRMINO]),ListaAula[EXCLUSIVO]),ListaAula[EXCLUSIVO],0),2),0)","v":0},{"$f":"IFERROR(INDEX(ListaAula[],MATCH(SUMPRODUCT((ListaAula[DIA]=HorárioDasAulas[[#Headers],[SEGUNDA-FEIRA]])*(ROUNDDOWN($B54,10)>=ROUNDDOWN(ListaAula[HORA DE INÍCIO],10))*($B54<=ListaAula[HORA DE TÉRMINO]),ListaAula[EXCLUSIVO]),ListaAula[EXCLUSIVO],0),2),0)","v":0},{"$f":"IFERROR(INDEX(ListaAula[],MATCH(SUMPRODUCT((ListaAula[DIA]=HorárioDasAulas[[#Headers],[TERÇA-FEIRA]])*(ROUNDDOWN($B54,10)>=ROUNDDOWN(ListaAula[HORA DE INÍCIO],10))*($B54<=ListaAula[HORA DE TÉRMINO]),ListaAula[EXCLUSIVO]),ListaAula[EXCLUSIVO],0),2),0)","v":0},{"$f":"IFERROR(INDEX(ListaAula[],MATCH(SUMPRODUCT((ListaAula[DIA]=HorárioDasAulas[[#Headers],[QUARTA-FEIRA]])*(ROUNDDOWN($B54,10)>=ROUNDDOWN(ListaAula[HORA DE INÍCIO],10))*($B54<=ListaAula[HORA DE TÉRMINO]),ListaAula[EXCLUSIVO]),ListaAula[EXCLUSIVO],0),2),0)","v":0},{"$f":"IFERROR(INDEX(ListaAula[],MATCH(SUMPRODUCT((ListaAula[DIA]=HorárioDasAulas[[#Headers],[QUINTA-FEIRA]])*(ROUNDDOWN($B54,10)>=ROUNDDOWN(ListaAula[HORA DE INÍCIO],10))*($B54<=ListaAula[HORA DE TÉRMINO]),ListaAula[EXCLUSIVO]),ListaAula[EXCLUSIVO],0),2),0)","v":0},{"$f":"IFERROR(INDEX(ListaAula[],MATCH(SUMPRODUCT((ListaAula[DIA]=HorárioDasAulas[[#Headers],[SEXTA-FEIRA]])*(ROUNDDOWN($B54,10)>=ROUNDDOWN(ListaAula[HORA DE INÍCIO],10))*($B54<=ListaAula[HORA DE TÉRMINO]),ListaAula[EXCLUSIVO]),ListaAula[EXCLUSIVO],0),2),0)","v":0},{"$f":"IFERROR(INDEX(ListaAula[],MATCH(SUMPRODUCT((ListaAula[DIA]=HorárioDasAulas[[#Headers],[SÁBADO]])*(ROUNDDOWN($B54,10)>=ROUNDDOWN(ListaAula[HORA DE INÍCIO],10))*($B54<=ListaAula[HORA DE TÉRMINO]),ListaAula[EXCLUSIVO]),ListaAula[EXCLUSIVO],0),2),0)","v":0}]
[null,"20:45:00",{"$f":"IFERROR(INDEX(ListaAula[],MATCH(SUMPRODUCT((ListaAula[DIA]=HorárioDasAulas[[#Headers],[DOMINGO]])*(ROUNDDOWN($B55,10)>=ROUNDDOWN(ListaAula[HORA DE INÍCIO],10))*($B55<=ListaAula[HORA DE TÉRMINO]),ListaAula[EXCLUSIVO]),ListaAula[EXCLUSIVO],0),2),0)","v":0},{"$f":"IFERROR(INDEX(ListaAula[],MATCH(SUMPRODUCT((ListaAula[DIA]=HorárioDasAulas[[#Headers],[SEGUNDA-FEIRA]])*(ROUNDDOWN($B55,10)>=ROUNDDOWN(ListaAula[HORA DE INÍCIO],10))*($B55<=ListaAula[HORA DE TÉRMINO]),ListaAula[EXCLUSIVO]),ListaAula[EXCLUSIVO],0),2),0)","v":0},{"$f":"IFERROR(INDEX(ListaAula[],MATCH(SUMPRODUCT((ListaAula[DIA]=HorárioDasAulas[[#Headers],[TERÇA-FEIRA]])*(ROUNDDOWN($B55,10)>=ROUNDDOWN(ListaAula[HORA DE INÍCIO],10))*($B55<=ListaAula[HORA DE TÉRMINO]),ListaAula[EXCLUSIVO]),ListaAula[EXCLUSIVO],0),2),0)","v":0},{"$f":"IFERROR(INDEX(ListaAula[],MATCH(SUMPRODUCT((ListaAula[DIA]=HorárioDasAulas[[#Headers],[QUARTA-FEIRA]])*(ROUNDDOWN($B55,10)>=ROUNDDOWN(ListaAula[HORA DE INÍCIO],10))*($B55<=ListaAula[HORA DE TÉRMINO]),ListaAula[EXCLUSIVO]),ListaAula[EXCLUSIVO],0),2),0)","v":0},{"$f":"IFERROR(INDEX(ListaAula[],MATCH(SUMPRODUCT((ListaAula[DIA]=HorárioDasAulas[[#Headers],[QUINTA-FEIRA]])*(ROUNDDOWN($B55,10)>=ROUNDDOWN(ListaAula[HORA DE INÍCIO],10))*($B55<=ListaAula[HORA DE TÉRMINO]),ListaAula[EXCLUSIVO]),ListaAula[EXCLUSIVO],0),2),0)","v":0},{"$f":"IFERROR(INDEX(ListaAula[],MATCH(SUMPRODUCT((ListaAula[DIA]=HorárioDasAulas[[#Headers],[SEXTA-FEIRA]])*(ROUNDDOWN($B55,10)>=ROUNDDOWN(ListaAula[HORA DE INÍCIO],10))*($B55<=ListaAula[HORA DE TÉRMINO]),ListaAula[EXCLUSIVO]),ListaAula[EXCLUSIVO],0),2),0)","v":0},{"$f":"IFERROR(INDEX(ListaAula[],MATCH(SUMPRODUCT((ListaAula[DIA]=HorárioDasAulas[[#Headers],[SÁBADO]])*(ROUNDDOWN($B55,10)>=ROUNDDOWN(ListaAula[HORA DE INÍCIO],10))*($B55<=ListaAula[HORA DE TÉRMINO]),ListaAula[EXCLUSIVO]),ListaAula[EXCLUSIVO],0),2),0)","v":0}]
[null,"21:00:00",{"$f":"IFERROR(INDEX(ListaAula[],MATCH(SUMPRODUCT((ListaAula[DIA]=HorárioDasAulas[[#Headers],[DOMINGO]])*(ROUNDDOWN($B56,10)>=ROUNDDOWN(ListaAula[HORA DE INÍCIO],10))*($B56<=ListaAula[HORA DE TÉRMINO]),ListaAula[EXCLUSIVO]),ListaAula[EXCLUSIVO],0),2),0)","v":0},{"$f":"IFERROR(INDEX(ListaAula[],MATCH(SUMPRODUCT((ListaAula[DIA]=HorárioDasAulas[[#Headers],[SEGUNDA-FEIRA]])*(ROUNDDOWN($B56,10)>=ROUNDDOWN(ListaAula[HORA DE INÍCIO],10))*($B56<=ListaAula[HORA DE TÉRMINO]),ListaAula[EXCLUSIVO]),ListaAula[EXCLUSIVO],0),2),0)","v":0},{"$f":"IFERROR(INDEX(ListaAula[],MATCH(SUMPRODUCT((ListaAula[DIA]=HorárioDasAulas[[#Headers],[TERÇA-FEIRA]])*(ROUNDDOWN($B56,10)>=ROUNDDOWN(ListaAula[HORA DE INÍCIO],10))*($B56<=ListaAula[HORA DE TÉRMINO]),ListaAula[EXCLUSIVO]),ListaAula[EXCLUSIVO],0),2),0)","v":0},{"$f":"IFERROR(INDEX(ListaAula[],MATCH(SUMPRODUCT((ListaAula[DIA]=HorárioDasAulas[[#Headers],[QUARTA-FEIRA]])*(ROUNDDOWN($B56,10)>=ROUNDDOWN(ListaAula[HORA DE INÍCIO],10))*($B56<=ListaAula[HORA DE TÉRMINO]),ListaAula[EXCLUSIVO]),ListaAula[EXCLUSIVO],0),2),0)","v":0},{"$f":"IFERROR(INDEX(ListaAula[],MATCH(SUMPRODUCT((ListaAula[DIA]=HorárioDasAulas[[#Headers],[QUINTA-FEIRA]])*(ROUNDDOWN($B56,10)>=ROUNDDOWN(ListaAula[HORA DE INÍCIO],10))*($B56<=ListaAula[HORA DE TÉRMINO]),ListaAula[EXCLUSIVO]),ListaAula[EXCLUSIVO],0),2),0)","v":0},{"$f":"IFERROR(INDEX(ListaAula[],MATCH(SUMPRODUCT((ListaAula[DIA]=HorárioDasAulas[[#Headers],[SEXTA-FEIRA]])*(ROUNDDOWN($B56,10)>=ROUNDDOWN(ListaAula[HORA DE INÍCIO],10))*($B56<=ListaAula[HORA DE TÉRMINO]),ListaAula[EXCLUSIVO]),ListaAula[EXCLUSIVO],0),2),0)","v":0},{"$f":"IFERROR(INDEX(ListaAula[],MATCH(SUMPRODUCT((ListaAula[DIA]=HorárioDasAulas[[#Headers],[SÁBADO]])*(ROUNDDOWN($B56,10)>=ROUNDDOWN(ListaAula[HORA DE INÍCIO],10))*($B56<=ListaAula[HORA DE TÉRMINO]),ListaAula[EXCLUSIVO]),ListaAula[EXCLUSIVO],0),2),0)","v":0}]

{"sheet":"Lista de Aulas","index":1,"n_rows":10,"n_cols":8,"rows_kept":10,"merged":[[0,1,0,5],[0,6,0,7]]}
[null,"LISTA DE AULAS",{"$nulls":4},"Horário das Aulas"]
[null,"AULA","ID","DIA","LOCAL","HORA DE INÍCIO","HORA DE TÉRMINO","EXCLUSIVO"]
[null,"Escrita Técnica","WR-121","SEGUNDA-FEIRA","Edifício A","13:00:00","14:00:00",{"$f":"ROW()-ROW(ListaAula[[#Headers],[EXCLUSIVO]])","v":1}]
[null,"Escrita Técnica","WR-121","QUARTA-FEIRA","Edifício A","13:00:00","14:00:00",{"$f":"ROW()-ROW(ListaAula[[#Headers],[EXCLUSIVO]])","v":2}]
[null,"Oratória","SP-111","SEGUNDA-FEIRA","Edifício B","16:00:00","17:00:00",{"$f":"ROW()-ROW(ListaAula[[#Headers],[EXCLUSIVO]])","v":3}]
[null,"Saúde e Fitness","HPE-295","TERÇA-FEIRA","Edifício B","11:00:00","12:00:00",{"$f":"ROW()-ROW(ListaAula[[#Headers],[EXCLUSIVO]])","v":4}]
[null,"Saúde e Fitness","HPE-295","QUINTA-FEIRA","Edifício B","11:00:00","12:00:00",{"$f":"ROW()-ROW(ListaAula[[#Headers],[EXCLUSIVO]])","v":5}]
[null,"Álgebra","MTH-113","SEGUNDA-FEIRA","Edifício C","08:10:00","09:15:00",{"$f":"ROW()-ROW(ListaAula[[#Headers],[EXCLUSIVO]])","v":6}]
[null,"Álgebra","MTH-113","QUARTA-FEIRA","Edifício C","08:10:00","09:15:00",{"$f":"ROW()-ROW(ListaAula[[#Headers],[EXCLUSIVO]])","v":7}]
[null,"Álgebra","MTH-113","SEXTA-FEIRA","Edifício C","08:10:00","09:15:00",{"$f":"ROW()-ROW(ListaAula[[#Headers],[EXCLUSIVO]])","v":8}]